2CCN - Level 2 Cost Centre Name,,9CCN - Level 9 Cost Centre Name,9CCC - Level 9 Cost Centre Code,9AN - Level 9 Account Name,9AC - Level 9 Account Code,Transaction Description,Date Paid,Transaction Reference,Analysed Amount,2AC - Level 2 Account Codes,Supplier Name,Supplier Code
Gloucester City Council,23UE,Alney Island,PY128,Contract Payments,20,ALNEY ISLAND,02/04/2015,400521,1150,CAP,Gloucestershire Wildlife Management,49628F
Gloucester City Council,23UE,Asset Management,RS300,Basic Pay - Temporary Staff,2751,Mar-15,02/04/2015,400551,7475,NET,Ardley Associates,09369F
Gloucester City Council,23UE,Blackfriars,LA609,Cleaning Materials,3600,DEC & JAN 2015,02/04/2015,400512,357.5,NET,Into Cleaning,14609P
Gloucester City Council,23UE,Business Transformation & Tech,RT700,Computer Software <5000,5425,SUPPORT TO 04/16,02/04/2015,400559,2743.8,NET,Q-Nomy,14828D
Gloucester City Council,23UE,Cemeteries,HC300,Vocational Training,2970,TRAINING SEMINARS,02/04/2015,400514,1045,NET,Institute Of Cemetery & Crematorium M'Ment,01116T
Gloucester City Council,23UE,City Museum And Art Gallery,LM200,Miscellaneous Expenses,2952,THERMAL ROLLS,02/04/2015,400513,32,NET,Premier Vanguard,50248R
Gloucester City Council,23UE,Civica It Contract,RT270,Contracted Services,6970,CREDIT NOTE NOT DUE,02/04/2015,400674,898.04,NET,Civica Uk Ltd,10841X
Gloucester City Council,23UE,Client Revs & Bens Contract,RT240,Bailiffs Fees,5368,CTAX FEES,02/04/2015,400543,172.85,NET,Bristow & Sutor,05450M
Gloucester City Council,23UE,Client Revs & Bens Contract,RT240,Bailiffs Fees,5368,CTAX FEES,02/04/2015,400549,84.97,NET,Bristow & Sutor,05450M
Gloucester City Council,23UE,Client Revs & Bens Contract,RT240,Bailiffs Fees,5368,VAT ONLY INVOICE,02/04/2015,400542,0,NET,Bristow & Sutor,05450M
Gloucester City Council,23UE,Client Revs & Bens Contract,RT240,Bailiffs Fees,5368,VAT ONLY INVOICE,02/04/2015,400547,0,NET,Bristow & Sutor,05450M
Gloucester City Council,23UE,Client Revs & Bens Contract,RT240,Bailiffs Fees,5368,VAT ONLY INVOICE,02/04/2015,400548,0,NET,Bristow & Sutor,05450M
Gloucester City Council,23UE,Client Revs & Bens Contract,RT240,Bailiffs Fees,5368,VAT ONLY INVOICE,02/04/2015,400550,0,NET,Bristow & Sutor,05450M
Gloucester City Council,23UE,Client Revs & Bens Contract,RT240,Computer Software Maintenance,5427,Licence Support & Manintenance 15/16,02/04/2015,398487,45381.95,NET,Civica Uk Ltd,10841X
Gloucester City Council,23UE,Community Safety Projects,FP500,Basic Pay - Temporary Staff,2751,TEMPORARY STAFF,02/04/2015,400570,592.47,NET,Travail Employment Ltd,49371W
Gloucester City Council,23UE,Community Safety Projects,FP500,Other Minor Supplies Services,5590,COMMUNITY VEHICLE,02/04/2015,400573,280.59,NET,"Police & Crime Commissioner, Gloucestershire",49521B
Gloucester City Council,23UE,Community Strat & Engagement,FP100,Other Minor Supplies Services,5590,FUNDS,02/04/2015,400581,3000,NET,Together In Matson,53760RV
Gloucester City Council,23UE,Community Strat & Engagement,FP100,Other Minor Supplies Services,5590,KINGSWAY BUILDER,02/04/2015,400554,17195.94,NET,Gl Communities,09535X
Gloucester City Council,23UE,Contact Centre,RB300,Basic Pay - Temporary Staff,2751,TEMPORARY STAFF,02/04/2015,400552,180,NET,Hbhc Synergy Ltd,13363J
Gloucester City Council,23UE,Contact Centre,RB300,Basic Pay - Temporary Staff,2751,STAFF W/E 28/03/14,02/04/2015,400546,478.5,NET,One To One Recruitment,04752H
Gloucester City Council,23UE,Corporate Reporting /Financing,RC504,Subscriptions,5600,Subscription 15/16,02/04/2015,400356,2495,NET,Lg Futures,11251S
Gloucester City Council,23UE,Countryside Unit,LP201,Maint Of Grounds - General,3030,TREE SURGERY,02/04/2015,400528,1400,NET,Gloucestershire Wildlife Trust,15576A
Gloucester City Council,23UE,Crematorium,HC200,Fees For Services Received,5350,CREM FEES MAR 2015,02/04/2015,400670,548.16,NET,Dr R W Bell,01571P
Gloucester City Council,23UE,Crematorium,HC200,Fees For Services Received,5350,CREM FEES MAR 2015,02/04/2015,400671,1578.96,NET,Dr D Martin,00890P
Gloucester City Council,23UE,Crematorium,HC200,Fees For Services Received,5350,CREM FEES MAR 2015,02/04/2015,400672,1087.52,NET,Dr C M Stretton,00306P
Gloucester City Council,23UE,Crematorium,HC200,Maint Of Grounds - General,3030,TURF,02/04/2015,400588,24,NET,Aran Turf,56656L
Gloucester City Council,23UE,"Cricket,3 Choirs,Cathedral",LA612,Sports Grants,7114,GRANT 2015/16,02/04/2015,400673,7000,NET,Gloucester City Afc (1980) Ltd,13368Y
Gloucester City Council,23UE,Development Management,PT200,Advertising And Publicity,5702,ADVERT 26/03/15,02/04/2015,400560,321.38,NET,Local World Ltd,08556P
Gloucester City Council,23UE,Development Management,PT200,Application Fees,9312,PLANNING FEE NOT REQUIRED,02/04/2015,400687,97,NET,Gloucester Brewery,13373F
Gloucester City Council,23UE,Docks Complex - Castlemeads Cp,RB210,General Repair/Maint Buildings,3000,CASTLEMEADS,02/04/2015,400585,1882,NET,Mpl Wrought Iron Llp,03907P
Gloucester City Council,23UE,Environmental Planning,LM340,Fees For Services Received,5350,BANKSIDE MANAGEMENT,02/04/2015,400520,2531,NET,Gloucestershire Wildlife Management,49628F
Gloucester City Council,23UE,Environmental Planning,LM340,Fees For Services Received,5350,ORCHARD MAINT,02/04/2015,400523,2345,NET,Gloucestershire Wildlife Management,49628F
Gloucester City Council,23UE,Environmental Planning,LM340,Operational Materials,5070,DULVERTON BUILDING,02/04/2015,400522,150,NET,Gloucestershire Wildlife Management,49628F
Gloucester City Council,23UE,Environmental Planning,LM340,Operational Materials,5070,FRIENDSHIP CAFE,02/04/2015,400591,364,NET,Forest Products Ltd,16060C
Gloucester City Council,23UE,Environmental Planning,LM340,Operational Materials,5070,MASTER PLAN,02/04/2015,400527,2000,NET,Gloucestershire Wildlife Trust,15576A
Gloucester City Council,23UE,Flooding And Drainage,HE306,Maint Of Grounds - General,3030,ABBEYMEAD PLAYING FIELDS,02/04/2015,400545,260,NET,Three Counties Drain Service,44033V
Gloucester City Council,23UE,Folk Museum,LM210,Advertising And Publicity,5702,Website Upgrade,02/04/2015,400275,50,NET,Days Out Publishing Ltd,51029W
Gloucester City Council,23UE,Gf Lifelinks,CH180,Contracted Services,6970,March 2015 Management Fee,02/04/2015,399332,2550.4,NET,Gloucester City Homes,05244T
Gloucester City Council,23UE,Gloucester Guildhall,LA100,Maintenance Of Equipment,5030,HARDWARE,02/04/2015,400511,168.23,NET,Cpc,52980M
Gloucester City Council,23UE,Gloucester Guildhall,LA100,Subscriptions,5600,Membership - 01/02 - 30/04 2015,02/04/2015,400354,91.25,NET,Gloucester City Safe,14709J
Gloucester City Council,23UE,Gloucester Guildhall,LA100,Subscriptions,5600,Membership - 01/11/14 - 31/02/15,02/04/2015,400355,91.25,NET,Gloucester City Safe,14709J
Gloucester City Council,23UE,Gloucester Partnership,FP106,Other Minor Supplies Services,5590,ROOM HIRE,02/04/2015,400582,30,NET,Quedgeley Parish Council,48506G
Gloucester City Council,23UE,Grants To Voluntary Sector,FG100,Members Allocation Fund,7100F,MEMBERS ALLOCATION FUND,02/04/2015,400587,583,NET,Hucclecote Community Association,23020B
Gloucester City Council,23UE,Grants To Voluntary Sector,FG100,Members Allocation Fund,7100F,MINI BIKE PROJECT,02/04/2015,400555,135,NET,Infobuzz Ltd,4743C
Gloucester City Council,23UE,REDACTED,REDACTED,REDACTED,REDACTED,REDACTED,02/04/2015,REDACTED,398,NET,REDACTED,REDACTED
Gloucester City Council,23UE,Grants To Voluntary Sector,FG100,Members Allocation Fund,7100F,MEMBERS ALLOCATION FUND,02/04/2015,400577,100,NET,Podsmead Big Local,14952X
Gloucester City Council,23UE,Grants To Voluntary Sector,FG100,Members Allocation Fund,7100F,MEMBERS ALLOCATION FUND,02/04/2015,400578,330,NET,Podsmead Big Local,14952X
Gloucester City Council,23UE,Guildhall Cinema,LA202,Fees For Services Received,5350,BROADCAST,02/04/2015,400629,100,NET,Cinema & Theatre Support Services,14502K
Gloucester City Council,23UE,REDACTED,REDACTED,REDACTED,REDACTED,REDACTED,02/04/2015,REDACTED,100,NET,REDACTED,REDACTED
Gloucester City Council,23UE,REDACTED,REDACTED,REDACTED,REDACTED,REDACTED,02/04/2015,REDACTED,100,NET,REDACTED,REDACTED
Gloucester City Council,23UE,REDACTED,REDACTED,REDACTED,REDACTED,REDACTED,02/04/2015,REDACTED,75,NET,REDACTED,REDACTED
Gloucester City Council,23UE,REDACTED,REDACTED,REDACTED,REDACTED,REDACTED,02/04/2015,REDACTED,100,NET,REDACTED,REDACTED
Gloucester City Council,23UE,REDACTED,REDACTED,REDACTED,REDACTED,REDACTED,02/04/2015,REDACTED,83.67,NET,REDACTED,REDACTED
Gloucester City Council,23UE,REDACTED,REDACTED,REDACTED,REDACTED,REDACTED,02/04/2015,REDACTED,16.33,NET,REDACTED,REDACTED
Gloucester City Council,23UE,REDACTED,REDACTED,REDACTED,REDACTED,REDACTED,02/04/2015,REDACTED,100,NET,REDACTED,REDACTED
Gloucester City Council,23UE,REDACTED,REDACTED,REDACTED,REDACTED,REDACTED,02/04/2015,REDACTED,171.25,NET,REDACTED,REDACTED
Gloucester City Council,23UE,REDACTED,REDACTED,REDACTED,REDACTED,REDACTED,02/04/2015,REDACTED,310.77,NET,REDACTED,REDACTED
Gloucester City Council,23UE,Guildhall Events,LA200,Advertising And Publicity,5702,ADVERT,02/04/2015,400553,500,NET,Marketing Gloucester Ltd,08925E
Gloucester City Council,23UE,Guildhall Events,LA200,Contents Insurance,5700,ADVERT 19/03/15,02/04/2015,400579,399.44,NET,Local World Ltd,08556P
Gloucester City Council,23UE,REDACTED,REDACTED,REDACTED,REDACTED,REDACTED,02/04/2015,REDACTED,1045,NET,REDACTED,REDACTED
Gloucester City Council,23UE,REDACTED,REDACTED,REDACTED,REDACTED,REDACTED,02/04/2015,REDACTED,72,NET,REDACTED,REDACTED
Gloucester City Council,23UE,REDACTED,REDACTED,REDACTED,REDACTED,REDACTED,02/04/2015,REDACTED,50,NET,REDACTED,REDACTED
Gloucester City Council,23UE,Homelessness,CH120,Fees For Services Received,5350,MEDICAL REPORT,02/04/2015,400590,20.5,NET,Rosebank Health,03041E
Gloucester City Council,23UE,Homelessness Prevention,CH122,Advertising And Publicity,5702,ADVERT,02/04/2015,400572,465.6,NET,The Link Directories (Gloucester) Ltd,15565Z
Gloucester City Council,23UE,Homelessness Prevention,CH122,Basic Pay - Temporary Staff,2751,TEMPORARY STAFF,02/04/2015,400564,948.01,NET,Building Recruitment Company Ltd,55385E
Gloucester City Council,23UE,Housing Strategy & Enabling,CH110,Advertising And Publicity,5702,INSIDE HOUSING,02/04/2015,400688,650,NET,Ocean Media Group Ltd,05628U
Gloucester City Council,23UE,Housing Works In Default,HD500,Clearance And Cleansing Fees,5384,30 TRIER WAY,02/04/2015,400544,670,NET,Three Counties Drain Service,44033V
Gloucester City Council,23UE,Human Resources,EH100,Fees For Services Received,5350,JOBSCREEN SERVICES,02/04/2015,400519,51.67,NET,Industrial Medical & Safety Services Ltd,10668L
Gloucester City Council,23UE,Internal Audit,RT300,Basic Pay - Temporary Staff,2751,TEMPORARY STAFF,02/04/2015,400569,778.75,NET,Robert Half Ltd,03959K
Gloucester City Council,23UE,Investment Property,RB500,Water Supply,3400,ACCT 6540022682,02/04/2015,398975,200.84,NET,Severn Trent Water,01823H
Gloucester City Council,23UE,Legal Services,RS200,Basic Pay - Temporary Staff,2751,TEMPORARY STAFF,02/04/2015,400566,726.25,NET,Michael Page International Recruitment Ltd,06601P
Gloucester City Council,23UE,Legal Services,RS200,Basic Pay - Temporary Staff,2751,TEMPORARY STAFF,02/04/2015,399845,1549.93,NET,Venn Group Ltd,04339P
Gloucester City Council,23UE,Legal Services,RS200,Basic Pay - Temporary Staff,2751,TEMPORARY STAFF,02/04/2015,400098,1549.93,NET,Venn Group Ltd,04339P
Gloucester City Council,23UE,Legal Services,RS200,Basic Pay - Temporary Staff,2751,TEMPORARY STAFF,02/04/2015,400365,1549.51,NET,Venn Group Ltd,04339P
Gloucester City Council,23UE,Meet & Greet,FP309,Other Minor Income,9900,BOBI MONEY,02/04/2015,400556,181,NET,Marketing Gloucester Ltd,08925E
Gloucester City Council,23UE,Off Street Car Parks,PP110,Fees For Services Received,5350,Mar-15,02/04/2015,398903,419.14,NET,Parkeon Ltd,03238G
Gloucester City Council,23UE,Off Street Car Parks,PP110,Rents,3200,Rent 25/03/15 - 23/06/15,02/04/2015,399330,118.75,NET,Telereal Services Ltd,15121I
Gloucester City Council,23UE,Parks Contract Management,LP100,Maint Of Grounds - General,3030,LONGLEVENS PLAY AREA,02/04/2015,400568,4386,NET,Greenfields Garden Services Ltd,48130G
Gloucester City Council,23UE,Parks Contract Management,LP100,Maint Of Grounds - General,3030,LONGLEVENS REC GROUND,02/04/2015,400525,9614,NET,Sunshine Playgrounds Ltd,14958J
Gloucester City Council,23UE,Play Area Refurbishment,LY071,Contract Payments,20,LONGLEVENS PLAY AREA,02/04/2015,400524,2605,CAP,Greenfields Garden Services Ltd,48130G
Gloucester City Council,23UE,Play Area Refurbishment,LY071,Contract Payments,20,PLAYGROUND EQUIP,02/04/2015,400529,4858,CAP,Kompan Ltd,03575J
Gloucester City Council,23UE,Printing,RP103,Printing,5300,Mar-15,02/04/2015,400633,2121.69,NET,Alpha Colour Printers Ltd,00945B
Gloucester City Council,23UE,Public Conveniences (Client),HI400,Contracted Services,6970,TOILET SCHEME,02/04/2015,400675,300,NET,Eastgate Shopping Centre,11026K
Gloucester City Council,23UE,Public Conveniences (Client),HI400,Contracted Services,6970,TOILET SCHEME,02/04/2015,400676,300,NET,The Warehouse Climbing Centre,11162S
Gloucester City Council,23UE,Public Conveniences (Client),HI400,Contracted Services,6970,TOILET SCHEME,02/04/2015,400677,300,NET,Moon And Food Company Ltd,11166H
Gloucester City Council,23UE,Public Conveniences (Client),HI400,Contracted Services,6970,TOILET SCHEME,02/04/2015,400678,300,NET,The Cross Keys,11165K
Gloucester City Council,23UE,Public Conveniences (Client),HI400,Contracted Services,6970,TOILET SCHEME,02/04/2015,400679,300,NET,Imperial Inn,13422U
Gloucester City Council,23UE,Public Conveniences (Client),HI400,Contracted Services,6970,TOILET SCHEME,02/04/2015,400680,300,NET,Hucclecote Community Association,23020B
Gloucester City Council,23UE,Public Conveniences (Client),HI400,Contracted Services,6970,TOILET SCHEME,02/04/2015,400681,300,NET,Shell Gloucestershire,11160W
Gloucester City Council,23UE,Public Conveniences (Client),HI400,Contracted Services,6970,TOILET SCHEME,02/04/2015,400682,300,NET,Fab And Faded,13265K
Gloucester City Council,23UE,Public Conveniences (Client),HI400,Contracted Services,6970,TOILET SCHEME,02/04/2015,400683,300,NET,The New Inn,13079J
Gloucester City Council,23UE,Public Conveniences (Client),HI400,Contracted Services,6970,TOILET SCHEME,02/04/2015,400684,300,NET,Samuel Smith Old Brewery,11161U
Gloucester City Council,23UE,REDACTED,REDACTED,REDACTED,REDACTED,REDACTED,02/04/2015,REDACTED,5000,NET,REDACTED,REDACTED
Gloucester City Council,23UE,Registration Of Electors,RS400,Fees For Services Received,5350,Mar-15,02/04/2015,400516,475.81,NET,Armstrong Removals,04632N
Gloucester City Council,23UE,Registration Of Electors,RS400,Fees For Services Received,5350,Oct-14,02/04/2015,400533,235,NET,Armstrong Removals,04632N
Gloucester City Council,23UE,Registration Of Electors,RS400,Postages,5400,ACCT 0870585031,02/04/2015,400583,1188.05,NET,Royal Mail S.Wales & South West,35830S
Gloucester City Council,23UE,Registration Of Electors,RS400,Publications,5060,PUBLICATION,02/04/2015,400586,172,NET,Thomson Reuters,43110M
Gloucester City Council,23UE,Retail Market - Landlord,HM300,Water Supply,3400,ACCT 6500437006,02/04/2015,400030,18771.38,NET,Severn Trent Water,01823H
Gloucester City Council,23UE,Safer Stronger Communities,FP841,Other Minor Supplies Services,5590,ADVERT,02/04/2015,400574,25,NET,The Local Answer,12841C
Gloucester City Council,23UE,Stationery Services,RS150,Printing,5300,PAPER,02/04/2015,400567,57.46,NET,Premier Paper Group Ltd,09166Y
Gloucester City Council,23UE,Tic Trading,LT110,Trade Refuse Sacks,5040,TRADE SACKS,02/04/2015,400666,1848.8,NET,Enterprise (Aol) Ltd,06695G
Gloucester City Council,23UE,Tourism Marketing,LT100,Exhibits And Collections,5038,PRINTING,02/04/2015,400589,1490,NET,In2print Ltd,55471L
Gloucester City Council,23UE,Tourism Marketing,LT100,Operational Equipment <5000,5012,PRINTING,02/04/2015,400589,374,NET,In2print Ltd,55471L
Gloucester City Council,23UE,Utilities,PT502,Gas Supply,3100,UTILITIES TO MAR 2015,02/04/2015,400029,27551.24,NET,West Mercia Energy,11669Z
Gloucester City Council,23UE,Legal Services,RS200,Basic Pay - Temporary Staff,2751,TEMPORARY STAFF,07/04/2015,399812,735,NET,Michael Page International Recruitment Ltd,06601P
Gloucester City Council,23UE,Asset Management,RS300,General Repair/Maint Buildings,3000,GREYFRIARS B/CLUB,08/04/2015,400639,32.84,NET,Rf Gardiner Limited,12299B
Gloucester City Council,23UE,Asset Management,RS300,General Repair/Maint Buildings,3000,SWISS COTTAGE,08/04/2015,400626,398.36,NET,Rf Gardiner Limited,12299B
Gloucester City Council,23UE,Asset Management,RS300,General Repair/Maint Buildings,3000,THE QUAY,08/04/2015,400640,44.35,NET,Rf Gardiner Limited,12299B
Gloucester City Council,23UE,Business Transformation & Tech,RT700,Computer Software Maintenance,5427,Annual Fee,08/04/2015,400312,12500,NET,Xpress Software Solutions,13533H
Gloucester City Council,23UE,Bus Station,RB400,General Repair/Maint Buildings,3000,BUS STATION,08/04/2015,400593,49.26,NET,Rf Gardiner Limited,12299B
Gloucester City Council,23UE,Celebratory Lights,LT302,Christmas Lights,5024,KINGS SQUARE,08/04/2015,400655,24.63,NET,Rf Gardiner Limited,12299B
Gloucester City Council,23UE,Civic Admin And Hospitality,RC210,Mace/Sword Bearers Fees,5359,Expenses for Civic Events,08/04/2015,400820,240,NET,REDACTED,REDACTED
Gloucester City Council,23UE,Civic Admin And Hospitality,RC210,Mace/Sword Bearers Fees,5359,Expenses for Civic Events,08/04/2015,400821,138,NET,REDACTED,REDACTED
Gloucester City Council,23UE,Civic Admin And Hospitality,RC210,Mace/Sword Bearers Fees,5359,Expenses for Civic Events,08/04/2015,400848,103,NET,REDACTED,REDACTED
Gloucester City Council,23UE,Civic Admin And Hospitality,RC210,Mace/Sword Bearers Fees,5359,Expenses for Civic Events,08/04/2015,400849,103,NET,REDACTED,REDACTED
Gloucester City Council,23UE,Contact Centre,RB300,Fees For Services Received,5350,Apr-15,08/04/2015,400535,237.57,NET,Office Response,09439K
Gloucester City Council,23UE,Docks Complex - Services,RB100,General Repair/Maint Buildings,3000,HKP,08/04/2015,400668,283.83,NET,Rf Gardiner Limited,12299B
Gloucester City Council,23UE,Docks Complex - Services,RB100,General Repair/Maint Buildings,3000,NORTH WAREHOUSE,08/04/2015,400605,141.94,NET,Rf Gardiner Limited,12299B
Gloucester City Council,23UE,Electrical Investigatory Works,RY142,Purchase Cost -Land,1,INNSWORTH LA PAVILION,08/04/2015,400663,800,CAP,Rf Gardiner Limited,12299B
Gloucester City Council,23UE,General Works Fund,RY203,Contract Payments,20,BEARLAND LODGE,08/04/2015,400647,119.91,CAP,Rf Gardiner Limited,12299B
Gloucester City Council,23UE,Gl1 Emergency Works,RY160,Contract Payments,20,NORTH WAREHOUSE,08/04/2015,400661,3829,CAP,Rf Gardiner Limited,12299B
Gloucester City Council,23UE,REDACTED,REDACTED,REDACTED,REDACTED,REDACTED,08/04/2015,REDACTED,240,NET,REDACTED,REDACTED
Gloucester City Council,23UE,Investment Property,RB500,General Repair/Maint Buildings,3000,BARBICAN CAR PAK,08/04/2015,400628,24.63,NET,Rf Gardiner Limited,12299B
Gloucester City Council,23UE,Investment Property,RB500,General Repair/Maint Buildings,3000,BRISTOL RD GARAGES,08/04/2015,400623,16.42,NET,Rf Gardiner Limited,12299B
Gloucester City Council,23UE,Investment Property,RB500,General Repair/Maint Buildings,3000,CITY MUSEUM,08/04/2015,400604,240.44,NET,Rf Gardiner Limited,12299B
Gloucester City Council,23UE,Investment Property,RB500,General Repair/Maint Buildings,3000,CITY MUSEUM,08/04/2015,400617,24.63,NET,Rf Gardiner Limited,12299B
Gloucester City Council,23UE,Investment Property,RB500,General Repair/Maint Buildings,3000,CITY MUSEUM,08/04/2015,400648,264.09,NET,Rf Gardiner Limited,12299B
Gloucester City Council,23UE,Investment Property,RB500,General Repair/Maint Buildings,3000,CITY MUSEUM,08/04/2015,400650,24.63,NET,Rf Gardiner Limited,12299B
Gloucester City Council,23UE,Investment Property,RB500,General Repair/Maint Buildings,3000,CITY MUSEUM,08/04/2015,400660,290.06,NET,Rf Gardiner Limited,12299B
Gloucester City Council,23UE,Investment Property,RB500,General Repair/Maint Buildings,3000,CREM,08/04/2015,400618,304.03,NET,Rf Gardiner Limited,12299B
Gloucester City Council,23UE,Investment Property,RB500,General Repair/Maint Buildings,3000,CREM,08/04/2015,400651,32.84,NET,Rf Gardiner Limited,12299B
Gloucester City Council,23UE,Investment Property,RB500,General Repair/Maint Buildings,3000,EASTGATE MARKET,08/04/2015,400610,24.63,NET,Rf Gardiner Limited,12299B
Gloucester City Council,23UE,Investment Property,RB500,General Repair/Maint Buildings,3000,EASTGATE MARKET,08/04/2015,400615,16.42,NET,Rf Gardiner Limited,12299B
Gloucester City Council,23UE,Investment Property,RB500,General Repair/Maint Buildings,3000,EASTGATE MARKET,08/04/2015,400652,20.24,NET,Rf Gardiner Limited,12299B
Gloucester City Council,23UE,Investment Property,RB500,General Repair/Maint Buildings,3000,EASTGATE SHOPPING CTR,08/04/2015,400627,610.38,NET,Rf Gardiner Limited,12299B
Gloucester City Council,23UE,Investment Property,RB500,General Repair/Maint Buildings,3000,FLEECE HOTEL,08/04/2015,400608,57.05,NET,Rf Gardiner Limited,12299B
Gloucester City Council,23UE,Investment Property,RB500,General Repair/Maint Buildings,3000,FOLK MUSEUM,08/04/2015,400607,65.7,NET,Rf Gardiner Limited,12299B
Gloucester City Council,23UE,Investment Property,RB500,General Repair/Maint Buildings,3000,FOLK MUSEUM,08/04/2015,400613,91.36,NET,Rf Gardiner Limited,12299B
Gloucester City Council,23UE,Investment Property,RB500,General Repair/Maint Buildings,3000,FOLK MUSEUM,08/04/2015,400624,39.65,NET,Rf Gardiner Limited,12299B
Gloucester City Council,23UE,Investment Property,RB500,General Repair/Maint Buildings,3000,GL1,08/04/2015,400659,84.04,NET,Rf Gardiner Limited,12299B
Gloucester City Council,23UE,Investment Property,RB500,General Repair/Maint Buildings,3000,GREYFRAIRS B/CLUB,08/04/2015,400643,61.89,NET,Rf Gardiner Limited,12299B
Gloucester City Council,23UE,Investment Property,RB500,General Repair/Maint Buildings,3000,GROSVENOR HOUSE,08/04/2015,400649,61.33,NET,Rf Gardiner Limited,12299B
Gloucester City Council,23UE,Investment Property,RB500,General Repair/Maint Buildings,3000,GUILDHALL,08/04/2015,400609,38.16,NET,Rf Gardiner Limited,12299B
Gloucester City Council,23UE,Investment Property,RB500,General Repair/Maint Buildings,3000,GUILDHALL,08/04/2015,400616,58.18,NET,Rf Gardiner Limited,12299B
Gloucester City Council,23UE,Investment Property,RB500,General Repair/Maint Buildings,3000,GUILDHALL,08/04/2015,400642,78.84,NET,Rf Gardiner Limited,12299B
Gloucester City Council,23UE,Investment Property,RB500,General Repair/Maint Buildings,3000,HEMPSTED MEADOW,08/04/2015,400601,283.68,NET,Rf Gardiner Limited,12299B
Gloucester City Council,23UE,Investment Property,RB500,General Repair/Maint Buildings,3000,HKP,08/04/2015,400653,65.7,NET,Rf Gardiner Limited,12299B
Gloucester City Council,23UE,Investment Property,RB500,General Repair/Maint Buildings,3000,HKP WAREHOUSE,08/04/2015,400611,16.42,NET,Rf Gardiner Limited,12299B
Gloucester City Council,23UE,Investment Property,RB500,General Repair/Maint Buildings,3000,SHOPMOBILITY,08/04/2015,400603,216.07,NET,Rf Gardiner Limited,12299B
Gloucester City Council,23UE,Investment Property,RB500,General Repair/Maint Buildings,3000,SHOPMOBILITY,08/04/2015,400606,65.7,NET,Rf Gardiner Limited,12299B
Gloucester City Council,23UE,Investment Property,RB500,General Repair/Maint Buildings,3000,SHOPMOBILITY,08/04/2015,400634,28.62,NET,Rf Gardiner Limited,12299B
Gloucester City Council,23UE,Investment Property,RB500,General Repair/Maint Buildings,3000,ST PAULS PARADE,08/04/2015,400596,113.48,NET,Rf Gardiner Limited,12299B
Gloucester City Council,23UE,Investment Property,RB500,General Repair/Maint Buildings,3000,TIC,08/04/2015,400614,281.97,NET,Rf Gardiner Limited,12299B
Gloucester City Council,23UE,Investment Property,RB500,General Repair/Maint Buildings,3000,WESTGATE ST,08/04/2015,400658,109.56,NET,Rf Gardiner Limited,12299B
Gloucester City Council,23UE,Kings Sq Paving Emerg Works,RY161,Contract Payments,20,KINGS SQUARE,08/04/2015,400636,25.04,CAP,Rf Gardiner Limited,12299B
Gloucester City Council,23UE,Legal Services,RS200,Fees For Services Received,5350,Charges Mar - May 2014,08/04/2015,399785,4371,NET,Bevan Brittan,06630Y
Gloucester City Council,23UE,Lighting,GY009,Capital Lighting Schemes,15,INFIRMARY ARCADE,08/04/2015,400625,1032,CAP,Rf Gardiner Limited,12299B
Gloucester City Council,23UE,Off Street Car Parks,PP110,General Repair/Maint Buildings,3000,EASTGATE ROOF CAR PARK,08/04/2015,400597,24.63,NET,Rf Gardiner Limited,12299B
Gloucester City Council,23UE,Off Street Car Parks,PP110,General Repair/Maint Buildings,3000,EASTGATE ST CAR PARK,08/04/2015,400645,158.45,NET,Rf Gardiner Limited,12299B
Gloucester City Council,23UE,Off Street Car Parks,PP110,General Repair/Maint Buildings,3000,HIGH ST CAR PARK,08/04/2015,400598,94.27,NET,Rf Gardiner Limited,12299B
Gloucester City Council,23UE,Off Street Car Parks,PP110,General Repair/Maint Buildings,3000,KINGS WALK CAR PARK,08/04/2015,400599,419.3,NET,Rf Gardiner Limited,12299B
Gloucester City Council,23UE,Off Street Car Parks,PP110,General Repair/Maint Buildings,3000,KINGS WALK CAR PARK,08/04/2015,400635,32.84,NET,Rf Gardiner Limited,12299B
Gloucester City Council,23UE,Off Street Car Parks,PP110,General Repair/Maint Buildings,3000,KINGS WALK CAR PARK,08/04/2015,400637,24.63,NET,Rf Gardiner Limited,12299B
Gloucester City Council,23UE,Off Street Car Parks,PP110,General Repair/Maint Buildings,3000,KINGS WALK CAR PARK,08/04/2015,400641,57.47,NET,Rf Gardiner Limited,12299B
Gloucester City Council,23UE,Off Street Car Parks,PP110,General Repair/Maint Buildings,3000,KINGS WALK CAR PARK,08/04/2015,400656,108.86,NET,Rf Gardiner Limited,12299B
Gloucester City Council,23UE,Off Street Car Parks,PP110,General Repair/Maint Buildings,3000,LONGSMITH ST CAR PARK,08/04/2015,400595,56.06,NET,Rf Gardiner Limited,12299B
Gloucester City Council,23UE,Off Street Car Parks,PP110,General Repair/Maint Buildings,3000,LONGSMITH ST CAR PARK,08/04/2015,400619,473.94,NET,Rf Gardiner Limited,12299B
Gloucester City Council,23UE,Off Street Car Parks,PP110,General Repair/Maint Buildings,3000,LONGSMITH ST CAR PARK,08/04/2015,400638,41.6,NET,Rf Gardiner Limited,12299B
Gloucester City Council,23UE,Off Street Car Parks,PP110,General Repair/Maint Buildings,3000,SINOPE ST CAR PARK,08/04/2015,400592,41.05,NET,Rf Gardiner Limited,12299B
Gloucester City Council,23UE,Off Street Car Parks,PP110,General Repair/Maint Buildings,3000,SINOPE ST CAR PARK,08/04/2015,400644,397.84,NET,Rf Gardiner Limited,12299B
Gloucester City Council,23UE,Off Street Car Parks,PP110,General Repair/Maint Buildings,3000,SINOPE ST CAR PARK,08/04/2015,400667,16.42,NET,Rf Gardiner Limited,12299B
Gloucester City Council,23UE,Off Street Car Parks,PP110,General Repair/Maint Buildings,3000,ST MICHAELS SQUARE,08/04/2015,400594,41.64,NET,Rf Gardiner Limited,12299B
Gloucester City Council,23UE,Off Street Car Parks,PP110,Rents,3200,Car Park Eastgate Shopping Centre,08/04/2015,399022,63528.19,NET,Workman Llp,11021M
Gloucester City Council,23UE,Off Street Car Parks,PP110,Service Charges,3020,Car Park Eastgate Shopping Centre,08/04/2015,399022,2083.5,NET,Workman Llp,11021M
Gloucester City Council,23UE,Parks Contract Management,LP100,Maint Of Grounds - General,3030,Parry Road,08/04/2015,400375,118.8,NET,Enterprise (Aol) Ltd,06695G
Gloucester City Council,23UE,Postal Services,RS120,Postages,5400,ACCT 0074842000,08/04/2015,400563,159.64,NET,Royal Mail S.Wales & South West,35830S
Gloucester City Council,23UE,Statutory Testing,RS310,Fees For Services Received,5350,GREYFRIARS B/CLUB,08/04/2015,400664,2514.75,NET,Rf Gardiner Limited,12299B
Gloucester City Council,23UE,Statutory Testing,RS310,Fees For Services Received,5350,INNSWORTH LA PAVILION,08/04/2015,400657,395.15,NET,Rf Gardiner Limited,12299B
Gloucester City Council,23UE,Statutory Testing,RS310,Fees For Services Received,5350,KINGS SQUARE,08/04/2015,400654,744.57,NET,Rf Gardiner Limited,12299B
Gloucester City Council,23UE,Statutory Testing,RS310,Fees For Services Received,5350,TUFFLEY PARK,08/04/2015,400662,1108.87,NET,Rf Gardiner Limited,12299B
Gloucester City Council,23UE,Swrda Asset Transfer,RY184,Capital General Repairs & Main,13,BARBICAN CAR PARK,08/04/2015,400602,249.2,CAP,Rf Gardiner Limited,12299B
Gloucester City Council,23UE,Docks Complex - Services,RB100,Lift Maintenance,3051,Engineer 28/01/2015,09/04/2015,398039,112.5,NET,Pickerings Europe Ltd,58816U
Gloucester City Council,23UE,General Works Fund,RY203,Capital Lifts,24,Herbert Warehouse Public Side,09/04/2015,399990,14739.41,CAP,Pickerings Europe Ltd,58816U
Gloucester City Council,23UE,Guildhall Bar And Caf�,LA210,Catering Provisions -Food,5110,Milk,09/04/2015,400283,4.6,NET,Total Produce Gloucester,12645E
Gloucester City Council,23UE,Guildhall Bar And Caf�,LA210,Catering Provisions -Food,5110,Milk,09/04/2015,400386,4.6,NET,Total Produce Gloucester,12645E
Gloucester City Council,23UE,Guildhall Bar And Caf�,LA210,Catering Provisions -Food,5110,Milk,09/04/2015,400387,4.6,NET,Total Produce Gloucester,12645E
Gloucester City Council,23UE,Guildhall Bar And Caf�,LA210,Catering Provisions -Food,5110,Milk,09/04/2015,400388,4.6,NET,Total Produce Gloucester,12645E
Gloucester City Council,23UE,Guildhall Bar And Caf�,LA210,Catering Provisions -Food,5110,Milk,09/04/2015,400389,4.6,NET,Total Produce Gloucester,12645E
Gloucester City Council,23UE,Guildhall Bar And Caf�,LA210,Catering Provisions -Food,5110,Milk,09/04/2015,400390,4.6,NET,Total Produce Gloucester,12645E
Gloucester City Council,23UE,Guildhall Bar And Caf�,LA210,Catering Provisions -Food,5110,Milk,09/04/2015,400391,4.6,NET,Total Produce Gloucester,12645E
Gloucester City Council,23UE,Guildhall Events,LA200,Advertising And Publicity,5702,Advertisement 27/02/2015,09/04/2015,400340,12.45,NET,Local World Ltd,08556P
Gloucester City Council,23UE,Guildhall Events,LA200,Advertising And Publicity,5702,ADVERTS JAN 2015,09/04/2015,399997,214.95,NET,Local World Ltd,08556P
Gloucester City Council,23UE,REDACTED,REDACTED,REDACTED,REDACTED,REDACTED,09/04/2015,REDACTED,600,NET,REDACTED,REDACTED
Gloucester City Council,23UE,Guildhall Events,LA200,Fees For Services Received,5350,National Ad Contributions,09/04/2015,400297,50,NET,Aeg Live,15561H
Gloucester City Council,23UE,REDACTED,REDACTED,REDACTED,REDACTED,REDACTED,09/04/2015,REDACTED,272.72,NET,REDACTED,REDACTED
Gloucester City Council,23UE,REDACTED,REDACTED,REDACTED,REDACTED,REDACTED,09/04/2015,REDACTED,340,NET,REDACTED,REDACTED
Gloucester City Council,23UE,REDACTED,REDACTED,REDACTED,REDACTED,REDACTED,09/04/2015,REDACTED,250,NET,REDACTED,REDACTED
Gloucester City Council,23UE,REDACTED,REDACTED,REDACTED,REDACTED,REDACTED,09/04/2015,REDACTED,280,NET,REDACTED,REDACTED
Gloucester City Council,23UE,Investment Property,RB500,Lift Maintenance,3051,Eastgate Markets Inspection,09/04/2015,399854,242.5,NET,Pickerings Europe Ltd,58816U
Gloucester City Council,23UE,Investment Property,RB500,Lift Maintenance,3051,Engineer 11/02/2015,09/04/2015,398838,18.75,NET,Pickerings Europe Ltd,58816U
Gloucester City Council,23UE,Investment Property,RB500,Lift Maintenance,3051,Engineer 27/01/2015,09/04/2015,398602,112.5,NET,Pickerings Europe Ltd,58816U
Gloucester City Council,23UE,Investment Property,RB500,Lift Maintenance,3051,Inspection - City Museum,09/04/2015,399824,121.25,NET,Pickerings Europe Ltd,58816U
Gloucester City Council,23UE,Investment Property,RB500,Lift Maintenance,3051,Inspection - Folk Museum,09/04/2015,399825,106.25,NET,Pickerings Europe Ltd,58816U
Gloucester City Council,23UE,Investment Property,RB500,Lift Maintenance,3051,Inspection - Gloucester Leisure Centre,09/04/2015,399857,242.5,NET,Pickerings Europe Ltd,58816U
Gloucester City Council,23UE,Investment Property,RB500,Lift Maintenance,3051,Inspection - Guildhall,09/04/2015,399855,481.75,NET,Pickerings Europe Ltd,58816U
Gloucester City Council,23UE,Investment Property,RB500,Lift Maintenance,3051,Inspection - The Docks,09/04/2015,399856,373.75,NET,Pickerings Europe Ltd,58816U
Gloucester City Council,23UE,Asset Management,RS300,Vocational Training,2970,COMMERCIAL PROPERTY CONFERENCE 12/05/15,10/04/2015,400534,238,NET,Professional Conferences,56296V
Gloucester City Council,23UE,Business Transformation & Tech,RT700,Computer Network Maintenance,5443,MAINT TO 03/16,10/04/2015,400571,18575,NET,Indigo Telecom Group Ltd,09159V
Gloucester City Council,23UE,City Centre Cctv System,PY275,Contract Payments,20,WIRELESS TENDER,10/04/2015,400531,3125,CAP,Rjh Technical Consultancy Ltd,14236M
Gloucester City Council,23UE,Civil Parking Enforcement,PT741,Computer Software Maintenance,5427,Cashless Parking Fees Dec 14,10/04/2015,396539,740.83,NET,Chipside Ltd,06535T
Gloucester City Council,23UE,Civil Parking Enforcement,PT741,Computer Software Maintenance,5427,MiPermit Fees,10/04/2015,399555,1266,NET,Chipside Ltd,06535T
Gloucester City Council,23UE,Civil Parking Enforcement,PT741,Computer Software Maintenance,5427,MiPermit Merchant Charges,10/04/2015,399556,2830.77,NET,Chipside Ltd,06535T
Gloucester City Council,23UE,Countryside Unit,LP201,Subscriptions,5600,MEMBERSHIP 2015,10/04/2015,400824,45,NET,Gloucester Cattle Society,56263L
Gloucester City Council,23UE,Disabled Facilities Grants,CY013,Disabled Facility Grants,74,DISABLED FACILITIES GRANT,10/04/2015,400898,3822,CAP,Beechwood Maintenance Ltd,14182P
Gloucester City Council,23UE,Docks Complex - Services,RB100,Catering Provisions -Food,5110,FOOD,10/04/2015,400864,16.99,NET,Total Produce Gloucester,12645E
Gloucester City Council,23UE,Docks Complex - Services,RB100,Catering Provisions -Food,5110,FOOD,10/04/2015,400865,29.4,NET,Total Produce Gloucester,12645E
Gloucester City Council,23UE,Docks Complex - Services,RB100,Catering Provisions -Food,5110,FOOD,10/04/2015,400866,22.21,NET,Total Produce Gloucester,12645E
Gloucester City Council,23UE,Docks Complex - Services,RB100,Catering Provisions -Food,5110,FOOD,10/04/2015,400867,5.77,NET,Total Produce Gloucester,12645E
Gloucester City Council,23UE,Docks Complex - Services,RB100,Catering Provisions -Food,5110,FOOD,10/04/2015,400868,8.64,NET,Total Produce Gloucester,12645E
Gloucester City Council,23UE,Docks Complex - Services,RB100,Catering Provisions -Food,5110,FOOD,10/04/2015,400869,11.63,NET,Total Produce Gloucester,12645E
Gloucester City Council,23UE,Docks Complex - Services,RB100,Catering Provisions -Food,5110,FOOD,10/04/2015,400870,8.64,NET,Total Produce Gloucester,12645E
Gloucester City Council,23UE,Docks Complex - Services,RB100,Catering Provisions -Food,5110,FOOD,10/04/2015,400871,43.13,NET,Total Produce Gloucester,12645E
Gloucester City Council,23UE,Docks Complex - Services,RB100,Catering Provisions -Food,5110,FOOD,10/04/2015,400872,20.29,NET,Total Produce Gloucester,12645E
Gloucester City Council,23UE,Docks Complex - Services,RB100,Catering Provisions -Food,5110,FOOD,10/04/2015,400873,37.46,NET,Total Produce Gloucester,12645E
Gloucester City Council,23UE,Docks Complex - Services,RB100,Catering Provisions -Food,5110,FOOD,10/04/2015,400874,8.64,NET,Total Produce Gloucester,12645E
Gloucester City Council,23UE,Docks Complex - Services,RB100,Catering Provisions -Food,5110,FOOD,10/04/2015,400875,16.99,NET,Total Produce Gloucester,12645E
Gloucester City Council,23UE,Docks Complex - Services,RB100,Catering Provisions -Food,5110,FOOD,10/04/2015,400876,30.22,NET,Total Produce Gloucester,12645E
Gloucester City Council,23UE,Docks Complex - Services,RB100,Catering Provisions -Food,5110,FOOD,10/04/2015,400877,20.87,NET,Total Produce Gloucester,12645E
Gloucester City Council,23UE,Docks Complex - Services,RB100,Catering Provisions -Food,5110,FOOD,10/04/2015,400878,29.41,NET,Total Produce Gloucester,12645E
Gloucester City Council,23UE,Docks Complex - Services,RB100,Catering Provisions -Food,5110,FOOD,10/04/2015,400879,46.45,NET,Total Produce Gloucester,12645E
Gloucester City Council,23UE,Docks Complex - Services,RB100,Catering Provisions -Food,5110,FOOD,10/04/2015,400880,31.73,NET,Total Produce Gloucester,12645E
Gloucester City Council,23UE,Docks Complex - Services,RB100,Catering Provisions -Food,5110,FOOD,10/04/2015,400881,18.04,NET,Total Produce Gloucester,12645E
Gloucester City Council,23UE,Docks Complex - Services,RB100,Catering Provisions -Food,5110,FOOD,10/04/2015,400882,31.89,NET,Total Produce Gloucester,12645E
Gloucester City Council,23UE,Docks Complex - Services,RB100,Catering Provisions -Food,5110,FOOD,10/04/2015,400883,34.89,NET,Total Produce Gloucester,12645E
Gloucester City Council,23UE,Docks Complex - Services,RB100,Catering Provisions -Food,5110,FOOD,10/04/2015,400884,25.82,NET,Total Produce Gloucester,12645E
Gloucester City Council,23UE,Docks Complex - Services,RB100,Catering Provisions -Food,5110,FOOD,10/04/2015,400885,25.62,NET,Total Produce Gloucester,12645E
Gloucester City Council,23UE,Docks Complex - Services,RB100,Catering Provisions -Food,5110,FOOD,10/04/2015,400886,8.64,NET,Total Produce Gloucester,12645E
Gloucester City Council,23UE,Docks Complex - Services,RB100,Catering Provisions -Food,5110,FOOD,10/04/2015,400887,25.89,NET,Total Produce Gloucester,12645E
Gloucester City Council,23UE,Docks Complex - Services,RB100,Catering Provisions -Food,5110,FOOD,10/04/2015,400888,35.24,NET,Total Produce Gloucester,12645E
Gloucester City Council,23UE,Docks Complex - Services,RB100,Catering Provisions -Food,5110,FOOD,10/04/2015,400889,37.46,NET,Total Produce Gloucester,12645E
Gloucester City Council,23UE,Docks Complex - Services,RB100,Catering Provisions -Food,5110,FOOD,10/04/2015,400890,426.52,NET,3663,55585U
Gloucester City Council,23UE,Docks Complex - Services,RB100,Catering Provisions -Food,5110,FOOD,10/04/2015,400891,407.73,NET,3663,55585U
Gloucester City Council,23UE,Docks Complex - Services,RB100,Catering Provisions -Food,5110,FOOD,10/04/2015,400892,195,NET,3663,55585U
Gloucester City Council,23UE,Docks Complex - Services,RB100,Catering Provisions -Food,5110,FOOD,10/04/2015,400893,362.87,NET,3663,55585U
Gloucester City Council,23UE,Docks Complex - Services,RB100,Catering Provisions -Food,5110,FOOD,10/04/2015,400894,461.65,NET,3663,55585U
Gloucester City Council,23UE,Docks Complex - Services,RB100,Recycling,3631,RECYCLING,10/04/2015,399193,65.8,NET,Printwaste Recycling,57114W
Gloucester City Council,23UE,Docks Complex - Services,RB100,Recycling,3631,RECYCLING,10/04/2015,399207,250.7,NET,Printwaste Recycling,57114W
Gloucester City Council,23UE,Docks Complex - Services,RB100,Recycling,3631,RECYCLING,10/04/2015,400843,1,NET,Printwaste Recycling,57114W
Gloucester City Council,23UE,Docks Complex - Services,RB100,Recycling,3631,RECYCLING,10/04/2015,400844,106.5,NET,Printwaste Recycling,57114W
Gloucester City Council,23UE,Docks Complex - Services,RB100,Repair/Maint Of Fixed Plant,3006,Checks November 2014,10/04/2015,398360,887.07,NET,Hewer Facilities Mgt Ltd,05232A
Gloucester City Council,23UE,Environmental Planning,LM340,Fees For Services Received,5350,ADVERT,10/04/2015,400842,100,NET,Bajr,15545F
Gloucester City Council,23UE,Flooding And Drainage,HE306,Maint Of Grounds - General,3030,SAINTBRIDGE POND,10/04/2015,400841,90,NET,Rdb Safety Boat Ltd,13507J
Gloucester City Council,23UE,Guildhall Events,LA200,Advertising And Publicity,5702,ADVERT,10/04/2015,400923,400,NET,Archant Life Ltd,03514F
Gloucester City Council,23UE,REDACTED,REDACTED,REDACTED,REDACTED,REDACTED,10/04/2015,REDACTED,800,NET,REDACTED,REDACTED
Gloucester City Council,23UE,Health Administration,HA200,Subscriptions,5600,SUBS TO 31/03/16,10/04/2015,400557,480,NET,Cieh,59465S
Gloucester City Council,23UE,Human Resources,EH100,Fees For Services Received,5350,CHECKS,10/04/2015,400862,375,NET,Disclosure Scotland,15567V
Gloucester City Council,23UE,Investment Property,RB500,Repair/Maint Of Fixed Plant,3006,Checks November 2014,10/04/2015,398345,946,NET,Hewer Facilities Mgt Ltd,05232A
Gloucester City Council,23UE,Investment Property,RB500,Repair/Maint Of Fixed Plant,3006,CITY MUSEUM,10/04/2015,393574,117.5,NET,Hewer Facilities Mgt Ltd,05232A
Gloucester City Council,23UE,Investment Property,RB500,Repair/Maint Of Fixed Plant,3006,folk museum,10/04/2015,397035,65,NET,Hewer Facilities Mgt Ltd,05232A
Gloucester City Council,23UE,Legal Services,RS200,Basic Pay - Temporary Staff,2751,TEMPORARY STAFF,10/04/2015,400838,472.5,NET,Michael Page International Recruitment Ltd,06601P
Gloucester City Council,23UE,Northwarehouse,RB150,Repair/Maint Of Fixed Plant,3006,Checks November 2014,10/04/2015,398361,295.69,NET,Hewer Facilities Mgt Ltd,05232A
Gloucester City Council,23UE,Off Street Car Parks,PP110,General Repair/Maint Buildings,3000,P&D Labour/ Call Out,10/04/2015,399346,260,NET,Parkeon Ltd,03238G
Gloucester City Council,23UE,Off Street Car Parks,PP110,Rents,3200,Car Park Office Service Charge,10/04/2015,399023,125,NET,Workman Llp,11021M
Gloucester City Council,23UE,Off Street Car Parks,PP110,Service Charges,3020,Car Park Office Service Charge,10/04/2015,399023,267.75,NET,Workman Llp,11021M
Gloucester City Council,23UE,Off Street Car Parks,PP110,Service Charges,3020,Pedestrian Access Service Charge,10/04/2015,399020,982.25,NET,Workman Llp,11021M
Gloucester City Council,23UE,Shopmobility,PE200,Cleaning Materials,3600,Apr-15,10/04/2015,400565,7.11,NET,Ocs Group Uk Limited T/A Cannon,06506A
Gloucester City Council,23UE,Vehicles,RS140,Fuel,4012,FUEL,10/04/2015,400863,128.2,NET,Allstar Business Solutions Ltd (Arval),06594A
Gloucester City Council,23UE,Bus Station,RB400,Water Supply,3400,ACCT 7890105225,13/04/2015,400970,196.99,NET,Severn Trent Water,01823H
Gloucester City Council,23UE,Cctv Revenue Budget,FP501,Security Equipment Serv/Repair,3038,CCTV,13/04/2015,401043,100,NET,Southern Electric Contracting Ltd,08337R
Gloucester City Council,23UE,Cctv Revenue Budget,FP501,Security Equipment Serv/Repair,3038,Mar-15,13/04/2015,400932,1726.67,NET,Quadrant Security Group Ltd,05109A
Gloucester City Council,23UE,Cemeteries,HC300,Maint Of Grounds - General,3030,Sweeping w/c 16/03/2015,13/04/2015,400372,64,NET,Enterprise (Aol) Ltd,06695G
Gloucester City Council,23UE,Cemeteries,HC300,Trade Refuse Tipping Fees,6297,HIRE MAR 2015,13/04/2015,400942,380,NET,Allstone Sand & Gravel Aggregates Ltd,00940M
Gloucester City Council,23UE,Cemeteries,HC300,Trade Refuse Tipping Fees,6297,WASTE,13/04/2015,401037,1460,NET,Allstone Sand & Gravel Aggregates Ltd,00940M
Gloucester City Council,23UE,City Museum,RY153,Contract Payments,20,CITY MUSEUM,13/04/2015,400518,3377.37,CAP,Showguard Ltd,15047D
Gloucester City Council,23UE,City Museum And Art Gallery,LM200,Miscellaneous Expenses,2952,ROLLS,13/04/2015,400827,37.95,NET,Premier Vanguard,50248R
Gloucester City Council,23UE,City Museum Catering,LM202,Catering Provisions -Liquor,5111,FOOD,13/04/2015,400985,40.75,NET,Woody'S Fruit & Veg,11798L
Gloucester City Council,23UE,City Museum Catering,LM202,Catering Provisions -Liquor,5111,FOOD,13/04/2015,400986,33.93,NET,Woody'S Fruit & Veg,11798L
Gloucester City Council,23UE,Civic Admin And Hospitality,RC210,Mace/Sword Bearers Fees,5359,Expenses for Civic Events,13/04/2015,401041,138,NET,REDACTED,REDACTED
Gloucester City Council,23UE,Civic Admin And Hospitality,RC210,Mace/Sword Bearers Fees,5359,Expenses for Civic Events,13/04/2015,401042,285,NET,REDACTED,REDACTED
Gloucester City Council,23UE,Civil Parking Enforcement,PT741,Computer Software Maintenance,5427,CCTV,13/04/2015,401028,258.94,NET,Chipside Ltd,06535T
Gloucester City Council,23UE,Civil Parking Enforcement,PT741,Computer Software Maintenance,5427,DVLA,13/04/2015,401029,84.9,NET,Chipside Ltd,06535T
Gloucester City Council,23UE,Civil Parking Enforcement,PT741,Computer Software Maintenance,5427,DVLA,13/04/2015,401031,73.2,NET,Chipside Ltd,06535T
Gloucester City Council,23UE,Civil Parking Enforcement,PT741,Computer Software Maintenance,5427,MPERMIT,13/04/2015,401030,529,NET,Chipside Ltd,06535T
Gloucester City Council,23UE,Contact Centre,RB300,Basic Pay - Temporary Staff,2751,STAFF W/E 03/04/15,13/04/2015,400981,382.8,NET,One To One Recruitment,04752H
Gloucester City Council,23UE,Contaminated Land,HE301,Basic Pay - Operational Staff,1001,TESTING,13/04/2015,400933,548.8,NET,Bromsgrove District Council,15037G
Gloucester City Council,23UE,Corporate Expenses,RC110,Subscriptions,5600,SUBS 2015-16,13/04/2015,400964,10450,NET,Local Government Association,11683F
Gloucester City Council,23UE,Council Streetcare Team,HI101,Water Supply,3400,ACCT 7890105225,13/04/2015,400970,456.93,NET,Severn Trent Water,01823H
Gloucester City Council,23UE,Countryside Unit,LP201,Tyres,4014,CREDITED ON 0120702,13/04/2015,400967,22.61,NET,Ats Euromaster Ltd,06005E
Gloucester City Council,23UE,Crematorium,HC200,Book Of Memory,5055,VISIT 20/03/15,13/04/2015,400953,157.99,NET,Hilton Cabinet Co Ltd,21910A
Gloucester City Council,23UE,Crematorium,HC200,Memorial Plaques,5053,PLAQUES,13/04/2015,400980,498,NET,Arkell & Hurcombe,59812T
Gloucester City Council,23UE,Crematorium,HC200,Water Supply,3400,ACCT 7890105225,13/04/2015,400970,43.88,NET,Severn Trent Water,01823H
Gloucester City Council,23UE,Director Serv & Neighbourhoods,ME104,Consultants Fees,5349,CONSULTANCY SERVICES,13/04/2015,400983,313.5,NET,Hc Human Resource Consulting Ltd,15576U
Gloucester City Council,23UE,Guildhall Bar And Caf�,LA210,Catering Provisions -Food,5110,FOOD,13/04/2015,401011,114.32,NET,Woody'S Fruit & Veg,11798L
Gloucester City Council,23UE,Guildhall Bar And Caf�,LA210,Catering Provisions -Liquor,5111,GAS,13/04/2015,400845,50.99,NET,Boc Ltd,59172L
Gloucester City Council,23UE,REDACTED,REDACTED,REDACTED,REDACTED,REDACTED,13/04/2015,REDACTED,94.7,NET,REDACTED,REDACTED
Gloucester City Council,23UE,REDACTED,REDACTED,REDACTED,REDACTED,REDACTED,13/04/2015,REDACTED,648.96,NET,REDACTED,REDACTED
Gloucester City Council,23UE,REDACTED,REDACTED,REDACTED,REDACTED,REDACTED,13/04/2015,REDACTED,1760,NET,REDACTED,REDACTED
Gloucester City Council,23UE,Homelessness,CH120,Fees For Services Received,5350,MEDICAL REPORT,13/04/2015,401017,20.5,NET,Hadwen Medical Practice,59727U
Gloucester City Council,23UE,Homelessness,CH120,Fees For Services Received,5350,MEDICAL REPORT,13/04/2015,401014,20.5,NET,Hadwen Medical Practice,59727U
Gloucester City Council,23UE,Homelessness,CH120,General Repair/Maint Buildings,3000,CHAIR,13/04/2015,401018,289,NET,Bestbuy Office Chairs,15521W
Gloucester City Council,23UE,Homelessness,CH120,Removal And Storage Fees,5513,TEMPORARY STORAGE FEES,13/04/2015,400935,185.46,NET,Advanced Removals & Storage Ltd,57142R
Gloucester City Council,23UE,Homelessness,CH120,Removal And Storage Fees,5513,TEMPORARY STORAGE FEES,13/04/2015,401016,236.25,NET,Advanced Removals & Storage Ltd,57142R
Gloucester City Council,23UE,Housing Works In Default,HD500,Clearance And Cleansing Fees,5384,CLEARANCE WORKS,13/04/2015,400943,150,NET,Rj Contracting (Environmental) Ltd,07429H
Gloucester City Council,23UE,Investment Property,RB500,General Repair/Maint Buildings,3000,EASTGATE MARKET,13/04/2015,401013,66.66,NET,Rf Gardiner Limited,12299B
Gloucester City Council,23UE,Investment Property,RB500,Water Supply,3400,ACCT 7890105225,13/04/2015,400970,-849.14,NET,Severn Trent Water,01823H
Gloucester City Council,23UE,Kings Sq Paving Emerg Works,RY161,Contract Payments,20,KINGS SQUARE,13/04/2015,401036,301.17,CAP,Rf Gardiner Limited,12299B
Gloucester City Council,23UE,REDACTED,REDACTED,REDACTED,REDACTED,REDACTED,13/04/2015,REDACTED,85,CAP,REDACTED,REDACTED
Gloucester City Council,23UE,National Express,LT105,Materials For Sale,5080,Mar-15,13/04/2015,400948,10890.8,NET,National Express Ltd,31455K
Gloucester City Council,23UE,National Express,LT105,Sale Of Goods And Services,9230,Mar-15,13/04/2015,400948,-1055.63,NET,National Express Ltd,31455K
Gloucester City Council,23UE,Off Street Car Parks,PP110,Water Supply,3400,ACCT 7890105225,13/04/2015,400970,1973.39,NET,Severn Trent Water,01823H
Gloucester City Council,23UE,Play Area Refurbishment,LY071,Contract Payments,20,INNSWORTH LA P/FIELDS,13/04/2015,400976,2931,CAP,Greenfields Garden Services Ltd,48130G
Gloucester City Council,23UE,Pollution Control,HE300,Fees For Services Received,5350,TESTING,13/04/2015,400930,111.15,NET,Gradko International Ltd,11063B
Gloucester City Council,23UE,Pollution Control,HE300,Fees For Services Received,5350,TESTING,13/04/2015,400931,111.15,NET,Gradko International Ltd,11063B
Gloucester City Council,23UE,Public Conveniences (Client),HI400,Water Supply,3400,ACCT 7890105225,13/04/2015,400970,196.99,NET,Severn Trent Water,01823H
Gloucester City Council,23UE,Stationery Services,RS150,Printing,5300,STATIONERY,13/04/2015,400978,29.96,NET,Lyreco Uk Ltd,11746G
Gloucester City Council,23UE,Stationery Services,RS150,Stationery,5302,STATIONERY,13/04/2015,400977,105.26,NET,Lyreco Uk Ltd,11746G
Gloucester City Council,23UE,The Arbor,HC501,Catering Provisions -Food,5110,FOOD,13/04/2015,400926,74.92,NET,Total Produce Gloucester,12645E
Gloucester City Council,23UE,The Arbor,HC501,Catering Provisions -Food,5110,FOOD,13/04/2015,400927,21.1,NET,Total Produce Gloucester,12645E
Gloucester City Council,23UE,The Arbor,HC501,Catering Provisions -Food,5110,FOOD,13/04/2015,400949,27.52,NET,Total Produce Gloucester,12645E
Gloucester City Council,23UE,The Arbor,HC501,Catering Provisions -Food,5110,FOOD,13/04/2015,400950,10.38,NET,Total Produce Gloucester,12645E
Gloucester City Council,23UE,The Arbor,HC501,Catering Provisions -Food,5110,FOOD,13/04/2015,400962,13.89,NET,Total Produce Gloucester,12645E
Gloucester City Council,23UE,The Arbor,HC501,Catering Provisions -Food,5110,FOOD,13/04/2015,400963,46.72,NET,Total Produce Gloucester,12645E
Gloucester City Council,23UE,The Arbor,HC501,Catering Provisions -Food,5110,FOOD,13/04/2015,401019,311.7,NET,3663,55585U
Gloucester City Council,23UE,The Arbor,HC501,Catering Provisions -Food,5110,FOOD,13/04/2015,401020,208.74,NET,3663,55585U
Gloucester City Council,23UE,The Arbor,HC501,Catering Provisions -Food,5110,FOOD,13/04/2015,401021,149.34,NET,3663,55585U
Gloucester City Council,23UE,The Arbor,HC501,Catering Provisions -Food,5110,FOOD,13/04/2015,401022,65.08,NET,Total Produce Gloucester,12645E
Gloucester City Council,23UE,The Arbor,HC501,Catering Provisions -Liquor,5111,DRINK,13/04/2015,400936,284.33,NET,Cellar Supplies Cheltenham Ltd,01563L
Gloucester City Council,23UE,The Arbor,HC501,Catering Provisions -Liquor,5111,DRINK,13/04/2015,400937,29.99,NET,Cellar Supplies Cheltenham Ltd,01563L
Gloucester City Council,23UE,The Arbor,HC501,Catering Provisions -Liquor,5111,DRINK,13/04/2015,400938,44.47,NET,Cellar Supplies Cheltenham Ltd,01563L
Gloucester City Council,23UE,The Arbor,HC501,Cleaning Materials,3600,FOOD,13/04/2015,400946,29.34,NET,3663,55585U
Gloucester City Council,23UE,Tourism Marketing,LT100,Exhibits And Collections,5038,TALL SHIPS,13/04/2015,400984,278,NET,Festival Of Food And Drink Ltd,15562F
Gloucester City Council,23UE,Tree Planting Grant Funded,LY150,Contract Payments,20,BRUNSWICK SQUARE,13/04/2015,400960,265,CAP,Greenfields Garden Services Ltd,48130G
Gloucester City Council,23UE,Tree Planting Grant Funded,LY150,Contract Payments,20,MILTON AVE,13/04/2015,400974,1044,CAP,Greenfields Garden Services Ltd,48130G
Gloucester City Council,23UE,Tree Planting Grant Funded,LY150,Contract Payments,20,OXMOOR,13/04/2015,400973,265,CAP,Greenfields Garden Services Ltd,48130G
Gloucester City Council,23UE,Tree Planting Grant Funded,LY150,Contract Payments,20,SPA RD,13/04/2015,400975,713,CAP,Greenfields Garden Services Ltd,48130G
Gloucester City Council,23UE,Ugly Structures,GY010,Contract Payments,20,CGI Images,13/04/2015,398512,1350,CAP,Astam G.B.C. Consultancy Ltd,55027L
Gloucester City Council,23UE,Vehicles,RS140,Fuel,4012,FUEL,13/04/2015,401032,307.97,NET,Allstar Business Solutions Ltd (Arval),06594A
Gloucester City Council,23UE,Vehicles,RS140,Tyres,4014,VE08 OUG,13/04/2015,400968,26.5,NET,Ats Euromaster Ltd,06005E
Gloucester City Council,23UE,Public Conveniences (Client),HI400,Contracted Services,6970,TOILET SCHEME,13/04/2015,400685,300,NET,The Westgate,10683R
Gloucester City Council,23UE,Asset Management,RS300,Subscriptions,5600,REG SCHEME,14/04/2015,400961,350,NET,Rics Membership,11457T
Gloucester City Council,23UE,Business Transformation & Tech,RT700,Computer Hardware <5000,5420,Optilex 7020,14/04/2015,399442,2245,NET,Dell Computers Corporation Ltd,55920C
Gloucester City Council,23UE,Business Transformation & Tech,RT700,Computer Hardware <5000,5420,Various Items,14/04/2015,398713,1556,NET,Dell Computers Corporation Ltd,55920C
Gloucester City Council,23UE,Business Transformation & Tech,RT700,Computer Hardware Maintenance,5426,External Optical,14/04/2015,398178,33.47,NET,Dell Computers Corporation Ltd,55920C
Gloucester City Council,23UE,REDACTED,REDACTED,REDACTED,REDACTED,REDACTED,14/04/2015,REDACTED,500,NET,REDACTED,REDACTED
Gloucester City Council,23UE,Cemeteries,HC300,Operational Materials,5070,Trousers,14/04/2015,400341,140.96,NET,Safpro Industrial Supply Co,39190W
Gloucester City Council,23UE,Cemeteries,HC300,Water Supply,3400,ACCT 3850367020,14/04/2015,399886,282.38,NET,Severn Trent Water,01823H
Gloucester City Council,23UE,REDACTED,REDACTED,REDACTED,REDACTED,REDACTED,14/04/2015,REDACTED,135.5,NET,REDACTED,REDACTED
Gloucester City Council,23UE,REDACTED,REDACTED,REDACTED,REDACTED,REDACTED,14/04/2015,REDACTED,385,NET,REDACTED,REDACTED
Gloucester City Council,23UE,Disabled Facilities Grants,CY013,Disabled Facility Grants,74,Disabled Facilities Grant MDF5106,14/04/2015,401160,2996.15,CAP,Mears Home Improvement Ltd,00096G
Gloucester City Council,23UE,Guildhall Events,LA200,Advertising And Publicity,5702,ADVERT 27/03/15,14/04/2015,400853,12.45,NET,Local World Ltd,08556P
Gloucester City Council,23UE,REDACTED,REDACTED,REDACTED,REDACTED,REDACTED,14/04/2015,REDACTED,620,NET,REDACTED,REDACTED
Gloucester City Council,23UE,REDACTED,REDACTED,REDACTED,REDACTED,REDACTED,14/04/2015,REDACTED,750,NET,REDACTED,REDACTED
Gloucester City Council,23UE,Interest Payable,VR100,Int On Other Temp. Borrowing,7811,INTEREST OCT 14 - MAR 15,14/04/2015,401146,184.81,NET,John Ward Trust,49282W
Gloucester City Council,23UE,Postal Services,RS120,Postages,5400,ACCT 0252446000,14/04/2015,400969,1841.37,NET,Royal Mail S.Wales & South West,35830S
Gloucester City Council,23UE,Stationery Services,RS150,Printing,5300,STATIONERY,14/04/2015,400979,52.74,NET,Lyreco Uk Ltd,11746G
Gloucester City Council,23UE,Stationery Services,RS150,Stationery,5302,STATIONERY,14/04/2015,400979,10.18,NET,Lyreco Uk Ltd,11746G
Gloucester City Council,23UE,Superbreak,LT104,Materials For Sale,5080,TICKET SALES 20/04/15,14/04/2015,400855,470.4,NET,Superbreak Mini Holidays,00712D
Gloucester City Council,23UE,Superbreak,LT104,Sale Of Goods And Services,9230,TICKET SALES 20/04/15,14/04/2015,400855,-39.18,NET,Superbreak Mini Holidays,00712D
Gloucester City Council,23UE,The Arbor,HC501,Catering Provisions -Food,5110,FOOD,14/04/2015,400832,90.35,NET,Janes Pantry,24500W
Gloucester City Council,23UE,The Arbor,HC501,Cleaning Materials,3600,Disposal Unit,14/04/2015,399533,34.56,NET,Minster Cleaning Services,02158R
Gloucester City Council,23UE,Tourism Marketing,LT100,Other Minor Supplies Services,5590,JAN-MAR 2015,14/04/2015,400839,6.12,NET,Ocs Group Uk Limited T/A Cannon,06506A
Gloucester City Council,23UE,Blackfriars,LA609,Cleaning Materials,3600,Cleaning at Blackfriars,15/04/2015,397922,70,NET,Gloucester Cleaning Service,17896B
Gloucester City Council,23UE,Business Transformation & Tech,RT700,Computer Software <5000,5425,Annual Software Licence Fee,15/04/2015,398369,2500,NET,Northgate Information Solutions Uk Ltd,08982S
Gloucester City Council,23UE,Business Transformation & Tech,RT700,Computer Software <5000,5425,Annual Software Support,15/04/2015,398353,3153.65,NET,Northgate Information Solutions Uk Ltd,08982S
Gloucester City Council,23UE,Business Transformation & Tech,RT700,Computer Software <5000,5425,Annual Software Support for bulk module,15/04/2015,398354,825.25,NET,Northgate Information Solutions Uk Ltd,08982S
Gloucester City Council,23UE,Business Transformation & Tech,RT700,Computer Software <5000,5425,INFO AT WORK,15/04/2015,397856,1300,NET,Northgate Information Solutions Uk Ltd,08982S
Gloucester City Council,23UE,Bus Station,RB400,Fees For Services Received,5350,Contributions,15/04/2015,401085,33377,NET,Cheltenham Borough Council,04176B
Gloucester City Council,23UE,Cemeteries,HC300,Maint Of Grounds - General,3030,Tredworth Road Cemetery,15/04/2015,401082,140,NET,Greenfields Garden Services Ltd,48130G
Gloucester City Council,23UE,City Museum And Art Gallery,LM200,Advertising And Publicity,5702,BADGES,15/04/2015,400859,373,NET,Emblem Print Products Limited,54871Z
Gloucester City Council,23UE,City Museum And Art Gallery,LM200,Overtime -Duty Managers,1503,Various Items,15/04/2015,401074,215.25,NET,Lyco Direct Limited,51364C
Gloucester City Council,23UE,Civica Fod Contract,RT260,Contracted Services,6970,YR 3 Q2,15/04/2015,400854,189455.02,NET,Civica Uk Ltd,10841X
Gloucester City Council,23UE,Client Revs & Bens Contract,RT240,Fees For Services Received,5350,VAT ONLY INVOICE,15/04/2015,400965,0,NET,Phoenix Commercial Collections Ltd,13435J
Gloucester City Council,23UE,Community Safety Projects,FP500,Basic Pay - Temporary Staff,2751,TEMPORARY STAFF,15/04/2015,401090,569.4,NET,Travail Employment Ltd,49371W
Gloucester City Council,23UE,Contact Centre,RB300,Basic Pay - Temporary Staff,2751,TEMPORARY STAFF,15/04/2015,401093,528,NET,Hbhc Synergy Ltd,13363J
Gloucester City Council,23UE,Crematorium,HC200,Cleaning Materials,3600,April - June 2015,15/04/2015,401075,77.56,NET,Initial Washroom Solutions,24219P
Gloucester City Council,23UE,Docks Complex - Services,RB100,Licences,5703,TV Licence 15/16,15/04/2015,401083,145.5,NET,Tv Licensing,32680R
Gloucester City Council,23UE,Docks Complex - Telephones,RB120,Mobile Phones,5409,Call Charges February 2015,15/04/2015,399558,2072.27,NET,Gamma Business Communications,10260A
Gloucester City Council,23UE,Docks Complex - Telephones,RB120,Mobile Phones,5409,Flexi Sony Xperia,15/04/2015,399528,123.33,NET,Everything Everywhere Ltd (T-Mobile),57543S
Gloucester City Council,23UE,Docks Complex - Telephones,RB120,Mobile Phones,5409,Mar-15,15/04/2015,399468,45.73,NET,Everything Everywhere Ltd (T-Mobile),57543S
Gloucester City Council,23UE,Docks Complex - Telephones,RB120,Telephones And Fax,5410,ACCT 78441964/6,15/04/2015,396653,1791.64,NET,Everything Everywhere Ltd (T-Mobile),57543S
Gloucester City Council,23UE,Docks Complex - Telephones,RB120,Telephones And Fax,5410,Charges Dec 2014,15/04/2015,396770,3864.02,NET,Vodafone Ltd,11843H
Gloucester City Council,23UE,Docks Complex - Telephones,RB120,Telephones And Fax,5410,Charges December 2014,15/04/2015,395549,48.32,NET,Everything Everywhere Ltd (T-Mobile),57543S
Gloucester City Council,23UE,Docks Complex - Telephones,RB120,Telephones And Fax,5410,Charges February 2015,15/04/2015,398181,45.44,NET,Everything Everywhere Ltd (T-Mobile),57543S
Gloucester City Council,23UE,Docks Complex - Telephones,RB120,Telephones And Fax,5410,Charges Jan 2015,15/04/2015,396687,47.78,NET,Everything Everywhere Ltd (T-Mobile),57543S
Gloucester City Council,23UE,Docks Complex - Telephones,RB120,Telephones And Fax,5410,Jan-15,15/04/2015,398163,2002.14,NET,Everything Everywhere Ltd (T-Mobile),57543S
Gloucester City Council,23UE,Employers Pension Contribs,ZR355,Pension Contribs Incl Backf,2901,Pension Scheme - Feb & Mar 2015,15/04/2015,401089,26386.26,NET,Gloucestershire County Council,10614L
Gloucester City Council,23UE,Financial Services,RT200,Subscriptions,5600,MEMBERSHIP 2015/16,15/04/2015,400940,1650,NET,Lavat Consulting Ltd,02836N
Gloucester City Council,23UE,Gl1 Pool Air Handling System,LY152,Contract Payments,20,Valuation 6,15/04/2015,401104,14647.69,CAP,Esg Pool Ventilation Ltd,14715P
Gloucester City Council,23UE,REDACTED,REDACTED,REDACTED,REDACTED,REDACTED,15/04/2015,REDACTED,434.36,NET,REDACTED,REDACTED
Gloucester City Council,23UE,REDACTED,REDACTED,REDACTED,REDACTED,REDACTED,15/04/2015,REDACTED,700,NET,REDACTED,REDACTED
Gloucester City Council,23UE,Legal Services,RS200,Basic Pay - Temporary Staff,2751,TEMPORARY STAFF,15/04/2015,401087,1549.93,NET,Venn Group Ltd,04339P
Gloucester City Council,23UE,Legal Services,RS200,Basic Pay - Temporary Staff,2751,TEMPORARY STAFF,15/04/2015,397317,487.29,NET,Premiere Employment Group Ltd,55468Z
Gloucester City Council,23UE,Legal Services,RS200,Basic Pay - Temporary Staff,2751,TEMPORARY STAFF,15/04/2015,395996,487.29,NET,Premiere Employment Group Ltd,55468Z
Gloucester City Council,23UE,Legal Services,RS200,Basic Pay - Temporary Staff,2751,TEMPORARY STAFF,15/04/2015,396226,467.54,NET,Premiere Employment Group Ltd,55468Z
Gloucester City Council,23UE,REDACTED,REDACTED,REDACTED,REDACTED,REDACTED,15/04/2015,REDACTED,840,NET,REDACTED,REDACTED
Gloucester City Council,23UE,REDACTED,REDACTED,REDACTED,REDACTED,REDACTED,15/04/2015,REDACTED,24,NET,REDACTED,REDACTED
Gloucester City Council,23UE,Retail Market - Landlord,HM300,Events,5952,2015 Gate Street Market Fee,15/04/2015,400320,4500,NET,City Centre Community Partnership,11601L
Gloucester City Council,23UE,REDACTED,REDACTED,REDACTED,REDACTED,REDACTED,15/04/2015,REDACTED,180,NET,REDACTED,REDACTED
Gloucester City Council,23UE,Tic Theatre Ticket Sales,LT107,Materials For Sale,5080,Ticket Sales 'Andacious Band',15/04/2015,401191,45,NET,New Day,10207E
Gloucester City Council,23UE,REDACTED,REDACTED,REDACTED,REDACTED,REDACTED,15/04/2015,REDACTED,-15,NET,REDACTED,REDACTED
Gloucester City Council,23UE,Tic Theatre Ticket Sales,LT107,Sale Of Goods And Services,9230,Ticket Sales 'Andacious Band',15/04/2015,401191,-3.75,NET,New Day,10207E
Gloucester City Council,23UE,Tree Planting Grant Funded,LY150,Contract Payments,20,Trees,15/04/2015,401073,194.2,CAP,Mount Pleasant Trees,51352K
Gloucester City Council,23UE,REDACTED,REDACTED,REDACTED,REDACTED,REDACTED,15/04/2015,REDACTED,204,NET,REDACTED,REDACTED
Gloucester City Council,23UE,REDACTED,REDACTED,REDACTED,REDACTED,REDACTED,15/04/2015,REDACTED,833,NET,REDACTED,REDACTED
Gloucester City Council,23UE,REDACTED,REDACTED,REDACTED,REDACTED,REDACTED,15/04/2015,REDACTED,212.5,NET,REDACTED,REDACTED
Gloucester City Council,23UE,REDACTED,REDACTED,REDACTED,REDACTED,REDACTED,15/04/2015,REDACTED,126.65,NET,REDACTED,REDACTED
Gloucester City Council,23UE,REDACTED,REDACTED,REDACTED,REDACTED,REDACTED,15/04/2015,REDACTED,187,NET,REDACTED,REDACTED
Gloucester City Council,23UE,REDACTED,REDACTED,REDACTED,REDACTED,REDACTED,15/04/2015,REDACTED,267.75,NET,REDACTED,REDACTED
Gloucester City Council,23UE,Asset Management,RS300,General Repair/Maint Buildings,3000,"St Lucys Garden, faulty lights",16/04/2015,395114,569.81,NET,Rf Gardiner Limited,12299B
Gloucester City Council,23UE,City Museum And Art Gallery,LM200,Sewerage And Environ Charges,3402,JAN-MAR 2015,16/04/2015,400833,43.95,NET,Ocs Group Uk Limited T/A Cannon,06506A
Gloucester City Council,23UE,Civica Contract Revs & Bens,RT250,Contracted Services,6970,May-15,16/04/2015,400857,136072.7,NET,Civica Uk Ltd,10841X
Gloucester City Council,23UE,Client Revs & Bens Contract,RT240,Fees For Services Received,5350,LAMAC 2015/16,16/04/2015,400834,8398.68,NET,Gemini Consultants Ltd,52177U
Gloucester City Council,23UE,Corporate Expenses,RC110,Subscriptions,5600,SUBS 2015/16,16/04/2015,400835,5743,NET,South West Councils,56523H
Gloucester City Council,23UE,Countryside Unit,LP201,Cleaning / Domestic Equipment,5011,Apr-15,16/04/2015,400515,26.52,NET,Ocs Group Uk Limited T/A Cannon,06506A
Gloucester City Council,23UE,Docks Complex - Services,RB100,Repair/Maint Of Fixed Plant,3006,REPAIR,16/04/2015,399963,1234,NET,Cooltherm,06087Z
Gloucester City Council,23UE,Folk Museum,LM210,Sewerage And Environ Charges,3402,Disposal Unit,16/04/2015,396200,18.33,NET,Ocs Group Uk Limited T/A Cannon,06506A
Gloucester City Council,23UE,Folk Museum,LM210,Sewerage And Environ Charges,3402,JAN-MAR 2015,16/04/2015,400856,18.33,NET,Ocs Group Uk Limited T/A Cannon,06506A
Gloucester City Council,23UE,REDACTED,REDACTED,REDACTED,REDACTED,REDACTED,16/04/2015,REDACTED,0,NET,REDACTED,REDACTED
Gloucester City Council,23UE,Hackney Carriages,HL100,Fees For Services Received,5350,DVLA CHECKS,16/04/2015,401023,118.75,NET,Intelligent Data Systems (Uk) Ltd,11067G
Gloucester City Council,23UE,Housing Works In Default,HD500,Clearance And Cleansing Fees,5384,CLEARANCE WORKS,16/04/2015,397441,2350,NET,Snape Construction Ltd,40958T
Gloucester City Council,23UE,Housing Works In Default,HD500,Clearance And Cleansing Fees,5384,WORKS,16/04/2015,400517,2404.97,NET,Davey'S Building Maintenance,57010K
Gloucester City Council,23UE,Interest Payable,VR100,Int On Other Temp. Borrowing,7811,ICLA INTEREST 2014/15,16/04/2015,401238,22096.47,NET,Gloucester City Homes,05244T
Gloucester City Council,23UE,Investment Property,RB500,General Repair/Maint Buildings,3000,BENTINCK HOUSE,16/04/2015,400665,662.29,NET,Rf Gardiner Limited,12299B
Gloucester City Council,23UE,Investment Property,RB500,General Repair/Maint Buildings,3000,Grosvenor House gutter clearance,16/04/2015,401240,19.08,NET,Rf Gardiner Limited,12299B
Gloucester City Council,23UE,Investment Property,RB500,General Repair/Maint Buildings,3000,Replacement Glazing,16/04/2015,398588,1656,NET,Roman Glass Ltd*,54322R
Gloucester City Council,23UE,Investment Property,RB500,General Repair/Maint Buildings,3000,TIC,16/04/2015,400612,24.63,NET,Rf Gardiner Limited,12299B
Gloucester City Council,23UE,Legal Services,RS200,Fees For Services Received,5350,Legal Services - Sept-Jan,16/04/2015,400345,2200,NET,Veale Wasbrough Vizards Llp,48116A
Gloucester City Council,23UE,St Michaels Tower,GY016,Contract Payments,20,"St Michaels Tower, Heras Fencing",16/04/2015,397056,65.68,CAP,Rf Gardiner Limited,12299B
Gloucester City Council,23UE,Cemeteries,HC300,Operational Materials,5070,Sweeping Crem Feb 2015,17/04/2015,399333,128,NET,Enterprise (Aol) Ltd,06695G
Gloucester City Council,23UE,Civica It Contract,RT270,Contracted Services,6970,May-15,17/04/2015,400858,47916.67,NET,Civica Uk Ltd,10841X
Gloucester City Council,23UE,REDACTED,REDACTED,REDACTED,REDACTED,REDACTED,17/04/2015,REDACTED,400,NET,REDACTED,REDACTED
Gloucester City Council,23UE,Community Safety Projects,FP500,Basic Pay - Temporary Staff,2751,TEMPORARY STAFF,17/04/2015,401094,389.24,NET,Travail Employment Ltd,49371W
Gloucester City Council,23UE,Crematorium,HC200,Memorial Plaques,5053,Plaque,17/04/2015,401067,103.5,NET,Treasured Memories Limited,11058H
Gloucester City Council,23UE,Financial Services,RT200,Consultants Fees,5349,CONSULTANTS FEES,17/04/2015,401064,425,NET,Advanced Business Solutions,06072N
Gloucester City Council,23UE,General Drainage Works,PY241,Contract Payments,20,Tewkesbury Road Works,17/04/2015,399810,5710,CAP,Rj Contracting (Environmental) Ltd,07429H
Gloucester City Council,23UE,Gloucester Guildhall,LA100,Cleaning Materials,3600,JAN-MAR 2015,17/04/2015,400840,148.2,NET,Ocs Group Uk Limited T/A Cannon,06506A
Gloucester City Council,23UE,Grants To Voluntary Sector,FG100,Grants,7100C,Community Grant 2015/16,17/04/2015,401260,10207,NET,Play Gloucestershire,06404K
Gloucester City Council,23UE,Grants To Voluntary Sector,FG100,Grants,7100C,Community Grant 2015/16,17/04/2015,401261,15000,NET,Gavca,06129J
Gloucester City Council,23UE,Grants To Voluntary Sector,FG100,Grants,7100C,Community Grant 2015/16,17/04/2015,401263,15000,NET,Together In Matson,53760RV
Gloucester City Council,23UE,Grants To Voluntary Sector,FG100,Grants,7100C,Community Grant 2015/16,17/04/2015,401264,15000,NET,Third Sector Services,09599K
Gloucester City Council,23UE,Grants To Voluntary Sector,FG100,Grants,7100C,Community Grant 2015/16,17/04/2015,401258,2000,NET,St Hilda'S Lunch Club,03586D
Gloucester City Council,23UE,REDACTED,REDACTED,REDACTED,REDACTED,REDACTED,17/04/2015,REDACTED,13428,NET,REDACTED,REDACTED
Gloucester City Council,23UE,REDACTED,REDACTED,REDACTED,REDACTED,REDACTED,17/04/2015,REDACTED,4000,NET,REDACTED,REDACTED
Gloucester City Council,23UE,REDACTED,REDACTED,REDACTED,REDACTED,REDACTED,17/04/2015,REDACTED,4674,NET,REDACTED,REDACTED
Gloucester City Council,23UE,Guildhall Events,LA200,Advertising And Publicity,5702,Display Ad,17/04/2015,401059,545,NET,Forest Of Dean & Wye Valley Review,14590K
Gloucester City Council,23UE,REDACTED,REDACTED,REDACTED,REDACTED,REDACTED,17/04/2015,REDACTED,300,NET,REDACTED,REDACTED
Gloucester City Council,23UE,REDACTED,LA200,REDACTED,REDACTED,REDACTED,17/04/2015,REDACTED,130,NET,REDACTED,REDACTED
Gloucester City Council,23UE,REDACTED,LA200,REDACTED,REDACTED,REDACTED,17/04/2015,REDACTED,50,NET,REDACTED,REDACTED
Gloucester City Council,23UE,Hempsted Market/Car Boot,HM234,Hire Of Equipment,5020,Apr-15,17/04/2015,400830,254.19,NET,Portable Offices (Hire ) Ltd,06286R
Gloucester City Council,23UE,Homelessness,CH120,Rent In Advance,5516,RIA & Deposit,17/04/2015,401255,588.52,NET,REDACTED,REDACTED
Gloucester City Council,23UE,REDACTED,REDACTED,REDACTED,REDACTED,REDACTED,17/04/2015,REDACTED,588.52,NET,REDACTED,REDACTED
Gloucester City Council,23UE,Homelessness Prevention,CH122,Fees For Services Received,5350,RIA & Deposit,17/04/2015,401255,600,NET,REDACTED,REDACTED
Gloucester City Council,23UE,REDACTED,REDACTED,REDACTED,REDACTED,REDACTED,17/04/2015,REDACTED,630,NET,REDACTED,REDACTED
Gloucester City Council,23UE,Investment Property,RB500,Consultants Fees,5349,Land at Manor Park,17/04/2015,401057,850,NET,Alder King,02367D
Gloucester City Council,23UE,Retail Market - Landlord,HM300,Trade Refuse Collection,3630,Apr-15,17/04/2015,400828,120,NET,B & S Pointon Ltd,06253G
Gloucester City Council,23UE,Arts Educational Promotions,LA610,Basic Pay - Casual Staff,1411,3 Victorian Classrooms,20/04/2015,401355,75,NET,REDACTED,REDACTED
Gloucester City Council,23UE,Aspire Admin Charges,LC105,Fees For Services Received,5350,consultants fees,20/04/2015,401063,1700,NET,Advanced Business Solutions,06072N
Gloucester City Council,23UE,Cemeteries,HC300,"Seeds, Trees, Plants, Shrubs",3028,Roses,20/04/2015,401354,9.2,NET,Genus Softworks Ltd,12320N
Gloucester City Council,23UE,Christmas Lights,GY006,Contract Payments,20,Advert 01/04/2015,20/04/2015,401045,87.65,CAP,Local World Ltd,08556P
Gloucester City Council,23UE,Corporate Reporting /Financing,RC504,Fees For Services Received,5350,Kiddivouchers April 2015,20/04/2015,401055,21.05,NET,Wider Plan Ltd ( Formerly Kiddivouchers),07893B
Gloucester City Council,23UE,Crematorium,HC200,Fertilisers,3029,Roses & Spacers,20/04/2015,401353,110,NET,Genus Softworks Ltd,12320N
Gloucester City Council,23UE,Crematorium,HC200,"Seeds, Trees, Plants, Shrubs",3028,Roses,20/04/2015,401354,28.5,NET,Genus Softworks Ltd,12320N
Gloucester City Council,23UE,Development Management,PT200,Advertising And Publicity,5702,Advert 02/04/2015,20/04/2015,401054,192.42,NET,Local World Ltd,08556P
Gloucester City Council,23UE,Financial Services,RT200,Consultants Fees,5349,consultants fees,20/04/2015,401079,425,NET,Advanced Business Solutions,06072N
Gloucester City Council,23UE,Guildhall Bar And Caf�,LA210,Catering Provisions -Food,5110,Food w/e 05/04/2015,20/04/2015,401071,67.6,NET,Janes Pantry,24500W
Gloucester City Council,23UE,REDACTED,REDACTED,REDACTED,REDACTED,REDACTED,20/04/2015,REDACTED,442.6,NET,REDACTED,REDACTED
Gloucester City Council,23UE,Guildhall Events,LA200,Fees For Services Received,5350,Months News,20/04/2015,401046,29.2,NET,W H Smith Ltd,40860M
Gloucester City Council,23UE,REDACTED,REDACTED,REDACTED,REDACTED,REDACTED,20/04/2015,REDACTED,1045,NET,REDACTED,REDACTED
Gloucester City Council,23UE,Hackney Carriages,HL100,Fees For Services Received,5350,CRB CHECKS,20/04/2015,399212,660,NET,Disclosure And Barring Service,00119W
Gloucester City Council,23UE,Hackney Carriages,HL100,Fees For Services Received,5350,DRBS,20/04/2015,400831,528,NET,Disclosure And Barring Service,00119W
Gloucester City Council,23UE,Homelessness Prevention,CH122,Basic Pay - Temporary Staff,2751,TEMPORARY STAFF,20/04/2015,401352,1946.92,NET,Building Recruitment Company Ltd,55385E
Gloucester City Council,23UE,The Arbor,HC501,Catering Provisions -Food,5110,Food,20/04/2015,401356,3,NET,Total Produce Gloucester,12645E
Gloucester City Council,23UE,The Arbor,HC501,Catering Provisions -Food,5110,Food,20/04/2015,401357,27.62,NET,Total Produce Gloucester,12645E
Gloucester City Council,23UE,The Arbor,HC501,Catering Provisions -Food,5110,Food,20/04/2015,401358,10.44,NET,Total Produce Gloucester,12645E
Gloucester City Council,23UE,The Arbor,HC501,Catering Provisions -Food,5110,Food,20/04/2015,401359,50.88,NET,Total Produce Gloucester,12645E
Gloucester City Council,23UE,The Arbor,HC501,Catering Provisions -Food,5110,Food,20/04/2015,401360,5.45,NET,Total Produce Gloucester,12645E
Gloucester City Council,23UE,The Arbor,HC501,Catering Provisions -Food,5110,Food,20/04/2015,401361,35.67,NET,Total Produce Gloucester,12645E
Gloucester City Council,23UE,The Arbor,HC501,Catering Provisions -Food,5110,Food,20/04/2015,401362,12.75,NET,Total Produce Gloucester,12645E
Gloucester City Council,23UE,The Arbor,HC501,Catering Provisions -Food,5110,Food,20/04/2015,401363,31.1,NET,Total Produce Gloucester,12645E
Gloucester City Council,23UE,The Arbor,HC501,Catering Provisions -Food,5110,Food,20/04/2015,401364,33.12,NET,3663,55585U
Gloucester City Council,23UE,The Arbor,HC501,Catering Provisions -Food,5110,Food,20/04/2015,401365,195.36,NET,3663,55585U
Gloucester City Council,23UE,The Arbor,HC501,Catering Provisions -Food,5110,Food,20/04/2015,401366,245.49,NET,3663,55585U
Gloucester City Council,23UE,The Arbor,HC501,Catering Provisions -Food,5110,Food,20/04/2015,401367,181.7,NET,3663,55585U
Gloucester City Council,23UE,Utilities,PT502,Electricity Supply,3110,UTILITIES TO APR 2015,20/04/2015,401202,42665.34,NET,West Mercia Energy,11669Z
Gloucester City Council,23UE,Blackfriars,LA609,Artists Fees,5355,'Mad Hatters Tea Party' 05/04/2015,21/04/2015,401333,150,NET,REDACTED,REDACTED
Gloucester City Council,23UE,Blackfriars,LA609,Sale Of Goods And Services,9230,Balloons,21/04/2015,401284,140,NET,Ooh La La Balloons,15575W
Gloucester City Council,23UE,Business Transformation & Tech,RT700,Computer Hardware Maintenance,5426,Maintenance 15/16,21/04/2015,399852,1086.86,NET,Capita Business Services Limited,54095C
Gloucester City Council,23UE,Business Transformation & Tech,RT700,Computer Software Maintenance,5427,Intranomic Support,21/04/2015,401309,3500,NET,Styletech Solutions Ltd,01930F
Gloucester City Council,23UE,Business Transformation & Tech,RT700,Computer Software Maintenance,5427,Maintenance 15/16,21/04/2015,399852,18625.06,NET,Capita Business Services Limited,54095C
Gloucester City Council,23UE,Cemeteries,HC300,Purch Vehicles/M. Plant <5000,4000,Blower,21/04/2015,401273,232.5,NET,Garden Machinery Gloucester,55641K
Gloucester City Council,23UE,Cemeteries,HC300,Repair/Maint Of Monuments,3004,Various Items,21/04/2015,401325,427.51,NET,Easy Mix Ltd,01403L
Gloucester City Council,23UE,Cemeteries,HC300,Routine R And M - Vehicles,4011,Belt,21/04/2015,401274,122.19,NET,Garden Machinery Gloucester,55641K
Gloucester City Council,23UE,City Museum And Art Gallery,LM200,Security Services Fees,5351,Call Out 30/01/2015,21/04/2015,401328,31,NET,Glevum Security Ltd,03249B
Gloucester City Council,23UE,Coll Fund Revenue Account,ZC100,Nndr Central Share,7474,COUNTY BRR POOLING 30/04/15,21/04/2015,401469,438720,NET,Gloucestershire County Council,18650D
Gloucester City Council,23UE,Coll Fund Revenue Account,ZC100,Nndr Tariff,7473,STROUD BRR POOLING 30/04/15,21/04/2015,401467,1374769,NET,Stroud District Council,74737T
Gloucester City Council,23UE,Council Streetcare Team,HI101,Maint Of Paths/Hardstandings,3056,Coney Hill Park - Verge Repairs,21/04/2015,401345,480,NET,Greenfields Garden Services Ltd,48130G
Gloucester City Council,23UE,Countryside Unit,LP201,Maint Of Grounds - General,3030,Various Items,21/04/2015,401065,137.37,NET,Tcs Country Supplies,15532R
Gloucester City Council,23UE,Countryside Unit,LP201,Overtime -Building Maint Staff,1303,Various Items,21/04/2015,401331,152.46,NET,Countrywide Farmers,55687J
Gloucester City Council,23UE,Crematorium,HC200,Cleaning Materials,3600,Cleaning Materials,21/04/2015,401326,147.82,NET,Core Hygiene Ltd,03885P
Gloucester City Council,23UE,Docks Complex - Services,RB100,Service Charges,3020,Rental April - July 2015,21/04/2015,400006,48.75,NET,Wessex Products (Leasing) Ltd,03684C
Gloucester City Council,23UE,Environmental Planning,LM340,Repair/Maint Of Monuments,3004,Removal of Grafitti,21/04/2015,401336,280,NET,A Murray Masonry,13836K
Gloucester City Council,23UE,Folk Museum,LM210,Security Services Fees,5351,Alarm Activation Call Out 30/03/2015,21/04/2015,401327,31,NET,Glevum Security Ltd,03249B
Gloucester City Council,23UE,Gloucester Guildhall,LA100,Cctv Servicing & Maint,3016,Supplied PSU's,21/04/2015,401282,140,NET,Eke Security Ltd,11519W
Gloucester City Council,23UE,Green Transport Policy,PJ130,Electric Car Charge,4030,Smart for Two Coupe,21/04/2015,401324,287.35,NET,Daimler Fleet Management,07828N
Gloucester City Council,23UE,REDACTED,REDACTED,REDACTED,REDACTED,REDACTED,21/04/2015,REDACTED,1400,NET,REDACTED,REDACTED
Gloucester City Council,23UE,REDACTED,REDACTED,REDACTED,REDACTED,REDACTED,21/04/2015,REDACTED,100,NET,REDACTED,REDACTED
Gloucester City Council,23UE,REDACTED,REDACTED,REDACTED,REDACTED,REDACTED,21/04/2015,REDACTED,2550,NET,REDACTED,REDACTED
Gloucester City Council,23UE,REDACTED,REDACTED,REDACTED,REDACTED,REDACTED,21/04/2015,REDACTED,150,NET,REDACTED,REDACTED
Gloucester City Council,23UE,Guildhall Events,LA200,Security Services Fees,5351,Door Staff for Guildhall Events,21/04/2015,401299,661.88,NET,Nsgl Ltd,12539E
Gloucester City Council,23UE,Homelessness,CH120,Basic Pay - Temporary Staff,2751,TEMPORARY STAFF,21/04/2015,400861,703,NET,Building Recruitment Company Ltd,55385E
Gloucester City Council,23UE,Homelessness,CH120,Basic Pay - Temporary Staff,2751,TEMPORARY STAFF,21/04/2015,400971,703,NET,Building Recruitment Company Ltd,55385E
Gloucester City Council,23UE,Housing Works In Default,HD500,Clearance And Cleansing Fees,5384,CLEARANCE WORKS,21/04/2015,400944,1890,NET,Rj Contracting (Environmental) Ltd,07429H
Gloucester City Council,23UE,Human Resources,EH100,Fees For Services Received,5350,Annual Subscription,21/04/2015,401281,5515,NET,Jgp Resourcing Ltd (Jobs Go Public),12491H
Gloucester City Council,23UE,Internal Health & Safety,EH110,Other Minor Supplies Services,5590,LAEOG Membership Fees,21/04/2015,401288,75,NET,Laeog,12040Y
Gloucester City Council,23UE,Land Searches,RO300,Fees For Services Received,5350,Annual Subscription,21/04/2015,401310,115,NET,Local Land Charges Institute,04897X
Gloucester City Council,23UE,Members Support,RC300,Conference/Meeting Expenses,5510,Conference Accomodation,21/04/2015,401300,745.63,NET,Bournemouth Convention Bureau Ltd,14627M
Gloucester City Council,23UE,Play Area Refurbishment,LY071,Contract Payments,20,Glevum Way Play Area,21/04/2015,401287,3288,CAP,Greenfields Garden Services Ltd,48130G
Gloucester City Council,23UE,Play Area Refurbishment,LY071,Contract Payments,20,Holmleigh Park - Retention,21/04/2015,401372,2438.22,CAP,Landscape To Play Ltd,09116P
Gloucester City Council,23UE,Play Area Refurbishment,LY071,Contract Payments,20,Monk Meadow Play Area -Paving,21/04/2015,401373,481,CAP,Landscape To Play Ltd,09116P
Gloucester City Council,23UE,Stationery Services,RS150,Stationery,5302,Stationary,21/04/2015,401340,45.16,NET,Lyreco Uk Ltd,11746G
Gloucester City Council,23UE,Taxi Marshalling Scheme,HL101,Taxi Marshals,5387,Taxi Marshalls 03 & 04 April 15,21/04/2015,401313,109.25,NET,Cuff Security Services Ltd,12073G
Gloucester City Council,23UE,Taxi Marshalling Scheme,HL101,Taxi Marshals,5387,Taxi Marshalls 06 & 08 Mar 2015,21/04/2015,401317,172.5,NET,Cuff Security Services Ltd,12073G
Gloucester City Council,23UE,Taxi Marshalling Scheme,HL101,Taxi Marshals,5387,Taxi Marshalls 13 & 14 Feb 2015,21/04/2015,401320,172.5,NET,Cuff Security Services Ltd,12073G
Gloucester City Council,23UE,Taxi Marshalling Scheme,HL101,Taxi Marshals,5387,Taxi Marshalls 13 & 14 Mar 2015,21/04/2015,401316,172.5,NET,Cuff Security Services Ltd,12073G
Gloucester City Council,23UE,Taxi Marshalling Scheme,HL101,Taxi Marshals,5387,Taxi Marshalls 20 & 21 Feb 2015,21/04/2015,401319,172.5,NET,Cuff Security Services Ltd,12073G
Gloucester City Council,23UE,Taxi Marshalling Scheme,HL101,Taxi Marshals,5387,Taxi Marshalls 20 & 21 Mar 2015,21/04/2015,401315,172.5,NET,Cuff Security Services Ltd,12073G
Gloucester City Council,23UE,Taxi Marshalling Scheme,HL101,Taxi Marshals,5387,Taxi Marshalls 27 & 28 Feb 2015,21/04/2015,401318,172.5,NET,Cuff Security Services Ltd,12073G
Gloucester City Council,23UE,Taxi Marshalling Scheme,HL101,Taxi Marshals,5387,Taxi Marshalls 27 & 28 Mar 2015,21/04/2015,401314,172.5,NET,Cuff Security Services Ltd,12073G
Gloucester City Council,23UE,Theatre Tokens,LT106,Materials For Sale,5080,Tickets March 2015,21/04/2015,401346,240,NET,Society Of London Theatre,05656Z
Gloucester City Council,23UE,Theatre Tokens,LT106,Sale Of Goods And Services,9230,Tickets March 2015,21/04/2015,401346,-12,NET,Society Of London Theatre,05656Z
Gloucester City Council,23UE,Tic Rovercard Sales,LT101,Materials For Sale,5080,Agents Return February 2015,21/04/2015,401342,5572.5,NET,Stagecoach Services Ltd,56554W
Gloucester City Council,23UE,Tic Rovercard Sales,LT101,Sale Of Goods And Services,9230,Agents Return February 2015,21/04/2015,401342,-464.38,NET,Stagecoach Services Ltd,56554W
Gloucester City Council,23UE,Tic Trading,LT110,Materials For Sale,5080,Note Books,21/04/2015,401343,54,NET,Awnhill,11767Y
Gloucester City Council,23UE,Tic Trading,LT110,Publications For Sale,5064,Gloucester Docks Historical Guide,21/04/2015,401321,83.25,NET,Black Dwarf Lightmoor Publications Ltd,59484M
Gloucester City Council,23UE,Tourism Marketing,LT100,Window Cleaning,3610,Window Cleaning Weekly Feb - Mar 2015,21/04/2015,401341,24,NET,Interserve Fs (Uk) Limited,00442K
Gloucester City Council,23UE,Utilities,PT502,Electricity Supply,3110,ROBINSWOOD HILL,21/04/2015,401416,589.67,NET,Npower,03929V
Gloucester City Council,23UE,Utilities,PT502,Electricity Supply,3110,UTILITIES TO APR 2015,21/04/2015,401415,2263.96,NET,West Mercia Energy,11669Z
Gloucester City Council,23UE,Utilities,PT502,Gas Supply,3100,UTILITIES TO APR 2015,21/04/2015,401415,26821.54,NET,West Mercia Energy,11669Z
Gloucester City Council,23UE,Aspire Admin Charges,LC105,Contracted Services,6970,Monthly Charge April 2015,22/04/2015,401275,54792.25,NET,Aspire Sports & Cultural Trust,08135V
Gloucester City Council,23UE,Civica Admin Charges,RT105,Fees For Services Received,5350,Subscription Advance,22/04/2015,401070,4,NET,Companies House,58954E
Gloucester City Council,23UE,Client Revs & Bens Contract,RT240,Fees For Services Received,5350,LAMAC Manual Postings Charge 14/15,22/04/2015,401285,40.12,NET,Gemini Consultants Ltd,52177U
Gloucester City Council,23UE,REDACTED,REDACTED,REDACTED,REDACTED,REDACTED,22/04/2015,REDACTED,97,NET,REDACTED,REDACTED
Gloucester City Council,23UE,Docks Complex - Services,RB100,Service Charges,3020,"Crematorium Charges, 4 Months",22/04/2015,398486,51,NET,Greenworks Solutions Ltd,05909G
Gloucester City Council,23UE,Docks Complex - Services,RB100,Service Charges,3020,Water Cooler Feb 2015,22/04/2015,398726,3600,NET,Greenworks Solutions Ltd,05909G
Gloucester City Council,23UE,Financial Services,RT200,Training Course Fees,5367,Exam fees 17/03/15,22/04/2015,401329,37.5,NET,Pitman Training Cheltenham,15476Z
Gloucester City Council,23UE,REDACTED,REDACTED,REDACTED,REDACTED,REDACTED,22/04/2015,REDACTED,1000,NET,REDACTED,REDACTED
Gloucester City Council,23UE,REDACTED,REDACTED,REDACTED,REDACTED,REDACTED,22/04/2015,REDACTED,300,NET,REDACTED,REDACTED
Gloucester City Council,23UE,Grants To Voluntary Sector,FG100,Members Allocation Fund,7100F,GRANT,22/04/2015,401465,259.98,NET,5th Gloucester Boys Brigade,15570G
Gloucester City Council,23UE,Grants To Voluntary Sector,FG100,Members Allocation Fund,7100F,GRANT,22/04/2015,401468,1000,NET,Increase The Peace Project,08667D
Gloucester City Council,23UE,Grants To Voluntary Sector,FG100,Members Allocation Fund,7100F,GRANT,22/04/2015,401472,574.96,NET,Hucclecote Community Association,23020B
Gloucester City Council,23UE,REDACTED,REDACTED,REDACTED,REDACTED,REDACTED,22/04/2015,REDACTED,2000,NET,REDACTED,REDACTED
Gloucester City Council,23UE,REDACTED,REDACTED,REDACTED,REDACTED,REDACTED,22/04/2015,REDACTED,500,NET,REDACTED,REDACTED
Gloucester City Council,23UE,REDACTED,REDACTED,REDACTED,REDACTED,REDACTED,22/04/2015,REDACTED,320,NET,REDACTED,REDACTED
Gloucester City Council,23UE,Hempsted Market/Car Boot,HM234,Advertising And Publicity,5702,Advertisement 19/03/2015,22/04/2015,400294,87.65,NET,Local World Ltd,08556P
Gloucester City Council,23UE,REDACTED,REDACTED,REDACTED,REDACTED,REDACTED,22/04/2015,REDACTED,253.84,NET,REDACTED,REDACTED
Gloucester City Council,23UE,REDACTED,REDACTED,REDACTED,REDACTED,REDACTED,22/04/2015,REDACTED,489.44,NET,REDACTED,REDACTED
Gloucester City Council,23UE,REDACTED,REDACTED,REDACTED,REDACTED,REDACTED,22/04/2015,REDACTED,489.44,NET,REDACTED,REDACTED
Gloucester City Council,23UE,REDACTED,REDACTED,REDACTED,REDACTED,REDACTED,22/04/2015,REDACTED,368.2,NET,REDACTED,REDACTED
Gloucester City Council,23UE,REDACTED,REDACTED,REDACTED,REDACTED,REDACTED,22/04/2015,REDACTED,360,NET,REDACTED,REDACTED
Gloucester City Council,23UE,REDACTED,REDACTED,REDACTED,REDACTED,REDACTED,22/04/2015,REDACTED,275,NET,REDACTED,REDACTED
Gloucester City Council,23UE,REDACTED,REDACTED,REDACTED,REDACTED,REDACTED,22/04/2015,REDACTED,500,NET,REDACTED,REDACTED
Gloucester City Council,23UE,REDACTED,REDACTED,REDACTED,REDACTED,REDACTED,22/04/2015,REDACTED,530,NET,REDACTED,REDACTED
Gloucester City Council,23UE,REDACTED,REDACTED,REDACTED,REDACTED,REDACTED,22/04/2015,REDACTED,400,NET,REDACTED,REDACTED
Gloucester City Council,23UE,REDACTED,REDACTED,REDACTED,REDACTED,REDACTED,22/04/2015,REDACTED,360,NET,REDACTED,REDACTED
Gloucester City Council,23UE,Housing Strategy & Enabling,CH110,Vocational Training,2970,Course 28/01/2015,22/04/2015,399840,10,NET,Chartered Institute Of Housing,24230C
Gloucester City Council,23UE,Investment Property,RB500,Advertising And Publicity,5702,ADVERT,22/04/2015,400851,759.62,NET,Local World Ltd,08556P
Gloucester City Council,23UE,Investment Property,RB500,Fire Alarms,3027,Annual Contract 15/16,22/04/2015,400099,306.34,NET,Chubb Fire & Security Ltd,54582K
Gloucester City Council,23UE,REDACTED,REDACTED,REDACTED,REDACTED,REDACTED,22/04/2015,REDACTED,170,NET,REDACTED,REDACTED
Gloucester City Council,23UE,Legal Services,RS200,Basic Pay - Temporary Staff,2751,TEMPORARY STAFF,22/04/2015,400295,980,NET,Michael Page International Recruitment Ltd,06601P
Gloucester City Council,23UE,Legal Services,RS200,Basic Pay - Temporary Staff,2751,TEMPORARY STAFF,22/04/2015,401286,387.48,NET,Venn Group Ltd,04339P
Gloucester City Council,23UE,Legal Services,RS200,Basic Pay - Temporary Staff,2751,TEMPORARY STAFF,22/04/2015,401292,487.29,NET,Premiere Employment Group Ltd,55468Z
Gloucester City Council,23UE,Legal Services,RS200,Basic Pay - Temporary Staff,2751,TEMPORARY STAFF,22/04/2015,401290,467.54,NET,Premiere Employment Group Ltd,55468Z
Gloucester City Council,23UE,REDACTED,REDACTED,REDACTED,REDACTED,REDACTED,22/04/2015,REDACTED,21,NET,REDACTED,REDACTED
Gloucester City Council,23UE,Printing,RP103,Printing,5300,Mar-15,22/04/2015,400584,1855,NET,Alpha Colour Printers Ltd,00945B
Gloucester City Council,23UE,Tourism Marketing,LT100,Misc Fixtures And Fittings,3500,Clothes Hanger,22/04/2015,401337,52.95,NET,Displaysense Ltd,05982W
Gloucester City Council,23UE,REDACTED,REDACTED,REDACTED,REDACTED,REDACTED,22/04/2015,REDACTED,357,NET,REDACTED,REDACTED
Gloucester City Council,23UE,REDACTED,REDACTED,REDACTED,REDACTED,REDACTED,22/04/2015,REDACTED,119,NET,REDACTED,REDACTED
Gloucester City Council,23UE,Blackfriars,LA609,Cleaning Materials,3600,Hand Drier rental,23/04/2015,398589,52.65,NET,Wessex Products (Leasing) Ltd,03684C
Gloucester City Council,23UE,Business Transformation & Tech,RT700,Computer Hardware <5000,5420,Various Items,23/04/2015,400319,1796,NET,Dell Computers Corporation Ltd,55920C
Gloucester City Council,23UE,Business Transformation & Tech,RT700,Computer Hardware <5000,5420,Various Items,23/04/2015,401368,125,NET,Qual Technology,56512N
Gloucester City Council,23UE,Cemeteries,HC300,Clothing,5200,Waterproof Boots,23/04/2015,401086,62.96,NET,Safpro Industrial Supply Co,39190W
Gloucester City Council,23UE,Cemeteries,HC300,Maint Of Grounds - General,3030,Various Items,23/04/2015,401293,583.25,NET,Rigby Taylor Ltd,37605G
Gloucester City Council,23UE,City Museum Catering,LM202,Catering Provisions -Food,5110,FOOD,23/04/2015,400954,4.6,NET,Total Produce Gloucester,12645E
Gloucester City Council,23UE,Crematorium,HC200,Cleaning Materials,3600,Welding Gauntlet,23/04/2015,401058,12,NET,Safpro Industrial Supply Co,39190W
Gloucester City Council,23UE,Docks Complex - Services,RB100,Catering Provisions -Food,5110,Food w/e 15/02/2015,23/04/2015,398502,88.21,NET,Janes Pantry,24500W
Gloucester City Council,23UE,Docks Complex - Services,RB100,Catering Provisions -Food,5110,Food w/e 22/03/2015,23/04/2015,400302,64.76,NET,Janes Pantry,24500W
Gloucester City Council,23UE,Docks Complex - Services,RB100,Cleaning Materials,3600,CLEANING GOODS,23/04/2015,400836,80.46,NET,Core Hygiene Ltd,03885P
Gloucester City Council,23UE,Guildhall Bar And Caf�,LA210,Catering Provisions -Food,5110,FOOD,23/04/2015,400955,4.6,NET,Total Produce Gloucester,12645E
Gloucester City Council,23UE,Guildhall Bar And Caf�,LA210,Catering Provisions -Food,5110,FOOD,23/04/2015,400956,4.6,NET,Total Produce Gloucester,12645E
Gloucester City Council,23UE,Guildhall Bar And Caf�,LA210,Catering Provisions -Food,5110,FOOD,23/04/2015,400966,4.6,NET,Total Produce Gloucester,12645E
Gloucester City Council,23UE,Guildhall Bar And Caf�,LA210,Catering Provisions -Food,5110,FOOD,23/04/2015,400987,140.76,NET,Woody'S Fruit & Veg,11798L
Gloucester City Council,23UE,Alney Island,PY128,Contract Payments,20,WATER SUPPLY,24/04/2015,401558,2578.62,CAP,Severn Trent Water Ltd,02417P
Gloucester City Council,23UE,Asset Management,RS300,Basic Pay - Temporary Staff,2751,Mar-15,24/04/2015,400925,5822.9,NET,Ecostep Ltd,15511Z
Gloucester City Council,23UE,Cemeteries,HC300,Clothing,5200,Uniforms,24/04/2015,401272,154.87,NET,Safpro Industrial Supply Co,39190W
Gloucester City Council,23UE,Cemeteries,HC300,Clothing,5200,Uniforms,24/04/2015,401297,70.75,NET,Safpro Industrial Supply Co,39190W
Gloucester City Council,23UE,City Museum Catering,LM202,Catering Provisions -Food,5110,FOOD,24/04/2015,401035,69.56,NET,Woodward Foodservice,10714F
Gloucester City Council,23UE,Countryside Unit,LP201,Livestock Foodstuff,5841,SALT LICK & HOLDER,24/04/2015,401332,23.31,NET,Countrywide Farmers,55687J
Gloucester City Council,23UE,Crematorium,HC200,Memorial Plaques,5053,Plaques,24/04/2015,399827,258,NET,Arkell & Hurcombe,59812T
Gloucester City Council,23UE,Docks Complex - Services,RB100,Cleaning Materials,3600,Cleaning Materials,24/04/2015,398160,35.85,NET,Cleanmy Ltd,06971S
Gloucester City Council,23UE,Docks Complex - Services,RB100,Cleaning Materials,3600,Cleaning Materials,24/04/2015,398825,44.82,NET,Cleanmy Ltd,06971S
Gloucester City Council,23UE,Docks Complex - Services,RB100,Cleaning Materials,3600,Cleaning Materials,24/04/2015,401294,158.97,NET,Core Hygiene Ltd,03885P
Gloucester City Council,23UE,Docks Complex - Services,RB100,Repair/Maint Of Fixed Plant,3006,Engineer 23/02/2015,24/04/2015,398836,408,NET,Cooltherm,06087Z
Gloucester City Council,23UE,REDACTED,REDACTED,REDACTED,REDACTED,REDACTED,24/04/2015,REDACTED,246.52,NET,REDACTED,REDACTED
Gloucester City Council,23UE,REDACTED,REDACTED,REDACTED,REDACTED,REDACTED,24/04/2015,REDACTED,550,NET,REDACTED,REDACTED
Gloucester City Council,23UE,REDACTED,REDACTED,REDACTED,REDACTED,REDACTED,24/04/2015,REDACTED,270,NET,REDACTED,REDACTED
Gloucester City Council,23UE,Investment Property,RB500,Advertising And Publicity,5702,ADVERT 11/03/15,24/04/2015,399989,350.59,NET,Local World Ltd,08556P
Gloucester City Council,23UE,Investment Property,RB500,Fire Alarm Maintenance,3053,Engineer 13/01/2015,24/04/2015,398840,195,NET,Adt Fire & Security Plc,54086D
Gloucester City Council,23UE,REDACTED,REDACTED,REDACTED,REDACTED,REDACTED,24/04/2015,REDACTED,675.33,NET,REDACTED,REDACTED
Gloucester City Council,23UE,Aspire Admin Charges,LC105,Security Services Fees,5351,Services May 2015,27/04/2015,401369,181.28,NET,G4s Cash Solutions (Uk) Ltd,04290V
Gloucester City Council,23UE,REDACTED,REDACTED,REDACTED,REDACTED,REDACTED,27/04/2015,REDACTED,1000,CAP,REDACTED,REDACTED
Gloucester City Council,23UE,Business Transformation & Tech,RT700,Computer Software Maintenance,5427,Breakdown of CCN's - April 2015,27/04/2015,401056,22623.48,NET,Civica Uk Ltd,10841X
Gloucester City Council,23UE,Cctv Revenue Budget,FP501,Security Equipment Serv/Repair,3038,Charges 01/04/14 - 31/03/2015,27/04/2015,401096,5395.9,NET,Npower Ltd,02663W
Gloucester City Council,23UE,Cemeteries,HC300,Maint Of Grounds - General,3030,Oil,27/04/2015,401603,146,NET,Spaldings,48759Y
Gloucester City Council,23UE,Cemeteries,HC300,Maint Of Grounds - General,3030,Plywood Trade,27/04/2015,401629,199.9,NET,Millington & Ramstedt Ltd,29815S
Gloucester City Council,23UE,Cemeteries,HC300,Routine R And M - Vehicles,4011,Parts,27/04/2015,401630,63.32,NET,T H White Ltd,08413P
Gloucester City Council,23UE,Cems/Crems Admin,HC100,Security Services Fees,5351,Services May 2015,27/04/2015,401369,103.33,NET,G4s Cash Solutions (Uk) Ltd,04290V
Gloucester City Council,23UE,City Museum And Art Gallery,LM200,Hire Of Equipment,5020,Machine Rental March 2015,27/04/2015,401619,135,NET,La Spaziale Uk Ltd,11823P
Gloucester City Council,23UE,City Museum And Art Gallery,LM200,Security Services Fees,5351,Services May 2015,27/04/2015,401369,90.64,NET,G4s Cash Solutions (Uk) Ltd,04290V
Gloucester City Council,23UE,Civic Admin And Hospitality,RC210,Hire Of Taxis,4053,Chauffeuring March 2015,27/04/2015,401586,668.5,NET,Chris Hall Chauffeuring,11660U
Gloucester City Council,23UE,REDACTED,REDACTED,REDACTED,REDACTED,REDACTED,27/04/2015,REDACTED,24,NET,REDACTED,REDACTED
Gloucester City Council,23UE,Civic Admin And Hospitality,RC210,Routine R And M - Vehicles,4011,MOT Test,27/04/2015,401563,54.85,NET,John Dandy Motors,13690P
Gloucester City Council,23UE,Client Revs & Bens Contract,RT240,Bailiffs Fees,5368,VAT due on statutory fees,27/04/2015,398351,0,NET,Bristow & Sutor,05450M
Gloucester City Council,23UE,Client Revs & Bens Contract,RT240,Bailiffs Fees,5368,VAT due on statutory fees,27/04/2015,401266,0,NET,Bristow & Sutor,05450M
Gloucester City Council,23UE,Client Revs & Bens Contract,RT240,Bailiffs Fees,5368,VAT due on statutory fees,27/04/2015,401283,0,NET,Bristow & Sutor,05450M
Gloucester City Council,23UE,Client Revs & Bens Contract,RT240,Bailiffs Fees,5368,VAT on fees collected,27/04/2015,401588,0,NET,Phoenix Commercial Collections Ltd,13435J
Gloucester City Council,23UE,Client Revs & Bens Contract,RT240,Bailiffs Fees,5368,VAT on fees collected,27/04/2015,401589,0,NET,Phoenix Commercial Collections Ltd,13435J
Gloucester City Council,23UE,Client Revs & Bens Contract,RT240,Bailiffs Fees,5368,VAT on statutory fees,27/04/2015,401267,377.14,NET,Bristow & Sutor,05450M
Gloucester City Council,23UE,Client Revs & Bens Contract,RT240,Bailiffs Fees,5368,VAT on statutory fees,27/04/2015,401523,240.53,NET,Bristow & Sutor,05450M
Gloucester City Council,23UE,Client Revs & Bens Contract,RT240,Bailiffs Fees,5368,VAT on statutory fees,27/04/2015,401524,0,NET,Bristow & Sutor,05450M
Gloucester City Council,23UE,Countryside Unit,LP201,Maint Of Grounds - General,3030,Radial Pin Key,27/04/2015,401596,13.5,NET,Gloucester Locksmiths,18160C
Gloucester City Council,23UE,Crematorium,HC200,Repair/Maint Of Fixed Plant,3006,Call Out Repair,27/04/2015,401628,505.3,NET,Facultatieve Technologies Ltd,51210H
Gloucester City Council,23UE,Development Management,PT200,Advertising And Publicity,5702,Advertisement 16/04/2015,27/04/2015,401572,321.38,NET,Local World Ltd,08556P
Gloucester City Council,23UE,REDACTED,REDACTED,REDACTED,REDACTED,REDACTED,27/04/2015,REDACTED,172,NET,REDACTED,REDACTED
Gloucester City Council,23UE,Docks Complex - Services,RB100,General Repair/Maint Buildings,3000,Contract,27/04/2015,401538,80.26,NET,Riba Enterprises,09988U
Gloucester City Council,23UE,Docks Complex - Services,RB100,Security Services Fees,5351,Services May 2015,27/04/2015,401369,270.81,NET,G4s Cash Solutions (Uk) Ltd,04290V
Gloucester City Council,23UE,Economic Development,FP300,Business Grant,7116,Business Rent Grant- 2nd Payment,27/04/2015,401611,1500,NET,Hubble Bubble Coffee House,15019J
Gloucester City Council,23UE,Folk Museum,LM210,Security Services Fees,5351,Services May 2015,27/04/2015,401369,90.64,NET,G4s Cash Solutions (Uk) Ltd,04290V
Gloucester City Council,23UE,Gloucester Guildhall,LA100,General Repair/Maint Buildings,3000,Various Items,27/04/2015,401568,45.4,NET,Directa Uk Ltd,05387T
Gloucester City Council,23UE,REDACTED,REDACTED,REDACTED,REDACTED,REDACTED,27/04/2015,REDACTED,53.42,NET,REDACTED,REDACTED
Gloucester City Council,23UE,Gloucester Guildhall,LA100,Security Services Fees,5351,Services May 2015,27/04/2015,401369,90.64,NET,G4s Cash Solutions (Uk) Ltd,04290V
Gloucester City Council,23UE,Grants To Voluntary Sector,FG100,Grants,7100C,Community Grant 15/16,27/04/2015,401657,850,NET,Together In Matson,53760RV
Gloucester City Council,23UE,Grants To Voluntary Sector,FG100,Grants,7100C,Community Grant 15/16,27/04/2015,401659,2500,NET,Gloucestershire Bike Project,12778H
Gloucester City Council,23UE,Grants To Voluntary Sector,FG100,Grants,7100C,Community Grant 15/16,27/04/2015,401660,400,NET,Gloucestershire Chinese Resource Centre,11643U
Gloucester City Council,23UE,REDACTED,REDACTED,REDACTED,REDACTED,REDACTED,27/04/2015,REDACTED,1850,NET,REDACTED,REDACTED
Gloucester City Council,23UE,REDACTED,REDACTED,REDACTED,REDACTED,REDACTED,27/04/2015,REDACTED,1836,NET,REDACTED,REDACTED
Gloucester City Council,23UE,Guildhall Bar And Caf�,LA210,Catering Provisions -Food,5110,Food,27/04/2015,401620,123.85,NET,Woodward Foodservice,10714F
Gloucester City Council,23UE,Guildhall Bar And Caf�,LA210,Catering Provisions -Food,5110,Food,27/04/2015,401621,119.84,NET,Woodward Foodservice,10714F
Gloucester City Council,23UE,Guildhall Bar And Caf�,LA210,Catering Provisions -Liquor,5111,Drinks,27/04/2015,401537,551.04,NET,Cellar Supplies Cheltenham Ltd,01563L
Gloucester City Council,23UE,Guildhall Bar And Caf�,LA210,Catering Provisions -Liquor,5111,Drinks,27/04/2015,401540,809.04,NET,Cellar Supplies Cheltenham Ltd,01563L
Gloucester City Council,23UE,Guildhall Bar And Caf�,LA210,Hire Of Equipment,5020,Stock Audit 31/03/15,27/04/2015,401528,90,NET,Fea Audits,08888J
Gloucester City Council,23UE,REDACTED,REDACTED,REDACTED,REDACTED,REDACTED,27/04/2015,REDACTED,30,NET,REDACTED,REDACTED
Gloucester City Council,23UE,REDACTED,REDACTED,REDACTED,REDACTED,REDACTED,27/04/2015,REDACTED,90,NET,REDACTED,REDACTED
Gloucester City Council,23UE,REDACTED,REDACTED,REDACTED,REDACTED,REDACTED,27/04/2015,REDACTED,107.69,NET,REDACTED,REDACTED
Gloucester City Council,23UE,REDACTED,REDACTED,REDACTED,REDACTED,REDACTED,27/04/2015,REDACTED,150,NET,REDACTED,REDACTED
Gloucester City Council,23UE,REDACTED,REDACTED,REDACTED,REDACTED,REDACTED,27/04/2015,REDACTED,600,NET,REDACTED,REDACTED
Gloucester City Council,23UE,REDACTED,REDACTED,REDACTED,REDACTED,REDACTED,27/04/2015,REDACTED,150,NET,REDACTED,REDACTED
Gloucester City Council,23UE,REDACTED,REDACTED,REDACTED,REDACTED,REDACTED,27/04/2015,REDACTED,110,NET,REDACTED,REDACTED
Gloucester City Council,23UE,Hempsted Market/Car Boot,HM234,Sewerage And Environ Charges,3402,Cleaning Services,27/04/2015,401541,434.8,NET,Abbey Loos Limited,10787B
Gloucester City Council,23UE,Hempsted Market/Car Boot,HM234,Sewerage And Environ Charges,3402,Cleaning Services,27/04/2015,401607,434.8,NET,Abbey Loos Limited,10787B
Gloucester City Council,23UE,Homelessness,CH120,Basic Pay - Temporary Staff,2751,TEMPORARY STAFF,27/04/2015,401609,117.32,NET,Advanced Removals & Storage Ltd,57142R
Gloucester City Council,23UE,Homelessness,CH120,Basic Pay - Temporary Staff,2751,TEMPORARY STAFF,27/04/2015,401608,195.54,NET,Advanced Removals & Storage Ltd,57142R
Gloucester City Council,23UE,Homelessness,CH120,Fees For Services Received,5350,Medical Advice March 2015,27/04/2015,401591,110,NET,Now Medical,03468L
Gloucester City Council,23UE,Homelessness,CH120,Fees For Services Received,5350,Medical Report,27/04/2015,401579,20.5,NET,Gloucester Health Access Centre,11611H
Gloucester City Council,23UE,Homelessness,CH120,Fees For Services Received,5350,Medical Report,27/04/2015,401578,20.5,NET,Hadwen Medical Practice,59727U
Gloucester City Council,23UE,Legal Services,RS200,Basic Pay - Temporary Staff,2751,TEMPORARY STAFF,27/04/2015,401562,214.02,NET,Premiere Employment Group Ltd,55468Z
Gloucester City Council,23UE,Meet & Greet,FP309,Advertising And Publicity,5702,Group Leisure Magazine,27/04/2015,401600,462.5,NET,Yandell Publishing Ltd,14956N
Gloucester City Council,23UE,Meet & Greet,FP309,Subscriptions,5600,Yearbook Entry 2015,27/04/2015,401605,149,NET,Diversified Business Communications Uk Ltd,15016R
Gloucester City Council,23UE,Museum Phase 2 Hlf,GY001,Contract Payments,20,Business Support Grant 2nd Payment,27/04/2015,401610,346.83,CAP,Roots Coffee & Community Cic,13358B
Gloucester City Council,23UE,Museum Phase 2 Hlf,GY001,Contract Payments,20,Business Grant 15/16,27/04/2015,401584,750,CAP,Stantek Electronics Ltd,15581B
Gloucester City Council,23UE,Off Street Car Parks,PP110,General Repair/Maint Buildings,3000,Great Western Rd Car Park,27/04/2015,401623,350,NET,Mpl Wrought Iron Llp,03907P
Gloucester City Council,23UE,Rehousing,CH111,Fees For Services Received,5350,Medical Advice March 2015,27/04/2015,401591,225,NET,Now Medical,03468L
Gloucester City Council,23UE,REDACTED,REDACTED,REDACTED,REDACTED,REDACTED,27/04/2015,REDACTED,20.5,NET,REDACTED,REDACTED
Gloucester City Council,23UE,Robinswood Hlf Archaeology,RY217,Contract Payments,20,Excavation Support,27/04/2015,401587,1012.8,CAP,A J Roberts T/A Archeoscan,14562R
Gloucester City Council,23UE,Tourism Marketing,LT100,Security Services Fees,5351,Services May 2015,27/04/2015,401369,90.64,NET,G4s Cash Solutions (Uk) Ltd,04290V
Gloucester City Council,23UE,Youth Grant 2011/12,FP107,Grants,7100C,Youth Grant 15/16,27/04/2015,401649,2500,NET,Gloucestershire Bike Project,12778H
Gloucester City Council,23UE,Youth Grant 2011/12,FP107,Grants,7100C,Youth Grant 15/16,27/04/2015,401650,2500,NET,Active Connections,65827RV
Gloucester City Council,23UE,Youth Grant 2011/12,FP107,Grants,7100C,Youth Grant 15/16,27/04/2015,401652,1500,NET,Gay Glos,04898V
Gloucester City Council,23UE,Youth Grant 2011/12,FP107,Grants,7100C,Youth Grant 15/16,27/04/2015,401653,2500,NET,Together In Matson,53760RV
Gloucester City Council,23UE,Youth Grant 2011/12,FP107,Grants,7100C,Youth Grant 15/16,27/04/2015,401656,540,NET,My:Uk,10755R
Gloucester City Council,23UE,REDACTED,REDACTED,REDACTED,REDACTED,REDACTED,27/04/2015,REDACTED,2490,NET,REDACTED,REDACTED
Gloucester City Council,23UE,REDACTED,REDACTED,REDACTED,REDACTED,REDACTED,27/04/2015,REDACTED,1000,NET,REDACTED,REDACTED
Gloucester City Council,23UE,REDACTED,REDACTED,REDACTED,REDACTED,REDACTED,28/04/2015,REDACTED,530,CAP,REDACTED,REDACTED
Gloucester City Council,23UE,Cemeteries,HC300,Routine R And M - Vehicles,4011,New Innertube,28/04/2015,401531,42.5,NET,Garden Machinery Gloucester,55641K
Gloucester City Council,23UE,City Museum And Art Gallery,LM200,Advertising And Publicity,5702,Renewal of Harwells Scheme,28/04/2015,401338,350,NET,Gloucestershire County Council,18650D
Gloucester City Council,23UE,City Museum And Art Gallery,LM200,Publications For Sale,5064,Wrist Bands,28/04/2015,399297,258,NET,Awnhill,11767Y
Gloucester City Council,23UE,City Museum And Art Gallery,LM200,Publications For Sale,5064,GOODS FOR RESALE,28/04/2015,401750,54,NET,Awnhill,11767Y
Gloucester City Council,23UE,City Museum And Art Gallery,LM200,Subscriptions,5600,Membership Fee 15/16,28/04/2015,401339,432,NET,Modes Users Association,52797E
Gloucester City Council,23UE,City Museum And Art Gallery,LM200,Subscriptions,5600,Renewal of Harwells Scheme,28/04/2015,401338,28,NET,Gloucestershire County Council,18650D
Gloucester City Council,23UE,Community Safety Projects,FP500,Basic Pay - Temporary Staff,2751,TEMPORARY STAFF,28/04/2015,401616,296.82,NET,Travail Employment Ltd,49371W
Gloucester City Council,23UE,Community Safety Projects,FP500,Other Minor Supplies Services,5590,Webinar,28/04/2015,401533,39,NET,Ncsn Ltd,53042K
Gloucester City Council,23UE,Contrib To Housing Pooled Recs,ZR205,Contrib To Housing Pooled Recs,7490,Quarter 4 pooling payment 2014/15,28/04/2015,401717,51858.11,NET,Clg,11059A
Gloucester City Council,23UE,Docks Complex - Services,RB100,Operational Equipment <5000,5012,Uniforms,28/04/2015,401280,51.83,NET,Safpro Industrial Supply Co,39190W
Gloucester City Council,23UE,Financial Services,RT200,Consultants Fees,5349,Expenses Recharges,28/04/2015,401534,144.22,NET,Advanced Business Solutions,06072N
Gloucester City Council,23UE,Financial Services,RT200,Consultants Fees,5349,Expenses Recharges,28/04/2015,401535,91.81,NET,Advanced Business Solutions,06072N
Gloucester City Council,23UE,General Works Fund,RY203,Capital General Repairs & Main,13,Bearland Lodge refurb certificate 4,28/04/2015,401239,891.97,CAP,Rf Gardiner Limited,12299B
Gloucester City Council,23UE,General Works Fund,RY203,Contract Payments,20,Bearland Lodge refurb certificate 4,28/04/2015,401239,783.32,CAP,Rf Gardiner Limited,12299B
Gloucester City Council,23UE,Gloucester Guildhall,LA100,General Repair/Maint Buildings,3000,Painting Studio Corridor,28/04/2015,401602,243.75,NET,Elspeth Green,15591Y
Gloucester City Council,23UE,Kings Quarter Redevelopment,RB600,Consultants Fees,5349,Consultancy Services,28/04/2015,401307,5192.92,NET,In Partnership With Ltd,15547B
Gloucester City Council,23UE,Nms Contract,HI102,Contracted Services,6970,April 2015 Service Fee,28/04/2015,401530,489095.83,NET,Enterprise (Aol) Ltd,06695G
Gloucester City Council,23UE,Retail Market - Landlord,HM300,Cleaning / Domestic Equipment,5011,Charges May 2015,28/04/2015,401544,18.93,NET,Initial Washroom Solutions,06143R
Gloucester City Council,23UE,Youth Grant 2011/12,FP107,Grants,7100C,Youth Grant 15/16,28/04/2015,401748,2500,NET,Glo-Active,12365P
Gloucester City Council,23UE,Youth Grant 2011/12,FP107,Grants,7100C,Youth Grant 15/16,28/04/2015,401749,1000,NET,Glo-Active,12365P
Gloucester City Council,23UE,REDACTED,REDACTED,REDACTED,REDACTED,REDACTED,28/04/2015,REDACTED,2500,NET,REDACTED,REDACTED
Gloucester City Council,23UE,Youth Grant 2011/12,FP107,Grants,7100C,Youth Grant 15/16,28/04/2015,401747,2500,NET,Churches For Change,14084G
Gloucester City Council,23UE,REDACTED,REDACTED,REDACTED,REDACTED,REDACTED,29/04/2015,REDACTED,80,NET,REDACTED,REDACTED
Gloucester City Council,23UE,Cemeteries,HC300,Maint Of Grounds - General,3030,Cultivator July 2014,29/04/2015,394187,135,NET,Ermin Plant Hire & Services Ltd,14150V
Gloucester City Council,23UE,Cemeteries,HC300,Maint Of Grounds - General,3030,Cultivator July 2014,29/04/2015,401769,10,NET,Ermin Plant Hire & Services Ltd,14150V
Gloucester City Council,23UE,REDACTED,REDACTED,REDACTED,REDACTED,REDACTED,29/04/2015,REDACTED,73.2,NET,REDACTED,REDACTED
Gloucester City Council,23UE,City Museum And Art Gallery,LM200,Operational Equipment <5000,5012,Balloon Sticks,29/04/2015,401599,53,NET,Banners & Balloons,58000D
Gloucester City Council,23UE,City Museum And Art Gallery,LM200,Publications For Sale,5064,Various Items,29/04/2015,401597,404.58,NET,Ashwood & Company,51123D
Gloucester City Council,23UE,City Museum Catering,LM202,Catering Provisions -Food,5110,DRINK,29/04/2015,400951,107.45,NET,James Gourmet Coffee Co.,55049A
Gloucester City Council,23UE,City Museum Catering,LM202,Catering Provisions -Food,5110,Milk,29/04/2015,401824,4.6,NET,Total Produce Gloucester,12645E
Gloucester City Council,23UE,City Museum Catering,LM202,Catering Provisions -Food,5110,Milk,29/04/2015,401825,4.6,NET,Total Produce Gloucester,12645E
Gloucester City Council,23UE,City Museum Catering,LM202,Catering Provisions -Food,5110,Milk,29/04/2015,401826,4.6,NET,Total Produce Gloucester,12645E
Gloucester City Council,23UE,City Museum Catering,LM202,Catering Provisions -Food,5110,Milk,29/04/2015,401827,4.6,NET,Total Produce Gloucester,12645E
Gloucester City Council,23UE,City Museum Catering,LM202,Catering Provisions -Food,5110,Milk,29/04/2015,401828,4.6,NET,Total Produce Gloucester,12645E
Gloucester City Council,23UE,City Museum Catering,LM202,Catering Provisions -Food,5110,Milk,29/04/2015,401829,4.6,NET,Total Produce Gloucester,12645E
Gloucester City Council,23UE,City Museum Catering,LM202,Catering Provisions -Food,5110,Milk,29/04/2015,401830,4.6,NET,Total Produce Gloucester,12645E
Gloucester City Council,23UE,City Museum Catering,LM202,Catering Provisions -Food,5110,Milk,29/04/2015,401831,4.6,NET,Total Produce Gloucester,12645E
Gloucester City Council,23UE,Docks Complex - Services,RB100,Cleaning Materials,3600,Cleaning Materials,29/04/2015,401525,20.27,NET,Core Hygiene Ltd,03885P
Gloucester City Council,23UE,Docks Complex - Telephones,RB120,Mobile Phones,5409,HTC Desire,29/04/2015,401526,140,NET,Everything Everywhere Ltd (T-Mobile),57543S
Gloucester City Council,23UE,Folk Museum,LM210,Publications For Sale,5064,Various Items,29/04/2015,401597,255.2,NET,Ashwood & Company,51123D
Gloucester City Council,23UE,Guildhall Bar And Caf�,LA210,Catering Provisions -Food,5110,Food,29/04/2015,401870,139.07,NET,Woodward Foodservice,10714F
Gloucester City Council,23UE,Guildhall Bar And Caf�,LA210,Catering Provisions -Food,5110,Milk,29/04/2015,401871,4.6,NET,Total Produce Gloucester,12645E
Gloucester City Council,23UE,Guildhall Bar And Caf�,LA210,Catering Provisions -Food,5110,Milk,29/04/2015,401872,4.6,NET,Total Produce Gloucester,12645E
Gloucester City Council,23UE,Guildhall Bar And Caf�,LA210,Catering Provisions -Food,5110,Milk,29/04/2015,401873,4.6,NET,Total Produce Gloucester,12645E
Gloucester City Council,23UE,Guildhall Bar And Caf�,LA210,Catering Provisions -Food,5110,Milk,29/04/2015,401874,4.6,NET,Total Produce Gloucester,12645E
Gloucester City Council,23UE,Guildhall Bar And Caf�,LA210,Catering Provisions -Food,5110,Milk,29/04/2015,401875,4.6,NET,Total Produce Gloucester,12645E
Gloucester City Council,23UE,Guildhall Bar And Caf�,LA210,Catering Provisions -Food,5110,Milk,29/04/2015,401876,4.6,NET,Total Produce Gloucester,12645E
Gloucester City Council,23UE,Guildhall Bar And Caf�,LA210,Catering Provisions -Food,5110,Milk,29/04/2015,401877,4.6,NET,Total Produce Gloucester,12645E
Gloucester City Council,23UE,Guildhall Bar And Caf�,LA210,Catering Provisions -Food,5110,Milk,29/04/2015,401878,4.6,NET,Total Produce Gloucester,12645E
Gloucester City Council,23UE,Guildhall Bar And Caf�,LA210,Catering Provisions -Food,5110,Milk,29/04/2015,401879,4.6,NET,Total Produce Gloucester,12645E
Gloucester City Council,23UE,Guildhall Bar And Caf�,LA210,Catering Provisions -Food,5110,Milk,29/04/2015,401880,4.6,NET,Total Produce Gloucester,12645E
Gloucester City Council,23UE,Guildhall Bar And Caf�,LA210,Catering Provisions -Food,5110,Milk,29/04/2015,401881,4.6,NET,Total Produce Gloucester,12645E
Gloucester City Council,23UE,Guildhall Bar And Caf�,LA210,Catering Provisions -Food,5110,Milk,29/04/2015,401882,4.6,NET,Total Produce Gloucester,12645E
Gloucester City Council,23UE,Guildhall Bar And Caf�,LA210,Catering Provisions -Food,5110,Milk,29/04/2015,401883,4.6,NET,Total Produce Gloucester,12645E
Gloucester City Council,23UE,Guildhall Bar And Caf�,LA210,Catering Provisions -Food,5110,Milk,29/04/2015,401884,4.6,NET,Total Produce Gloucester,12645E
Gloucester City Council,23UE,Guildhall Cinema,LA202,Fees For Services Received,5350,Monthly Cinema Run,29/04/2015,400293,259.1,NET,Nft Logistics Ltd,13505N
Gloucester City Council,23UE,Guildhall Cinema,LA202,Fees For Services Received,5350,Monthly Film Charge,29/04/2015,400353,219.59,NET,Nft Logistics Ltd,13505N
Gloucester City Council,23UE,Guildhall Cinema,LA202,Fees For Services Received,5350,Monthly Film Charge,29/04/2015,401322,219.59,NET,Nft Logistics Ltd,13505N
Gloucester City Council,23UE,REDACTED,REDACTED,REDACTED,REDACTED,REDACTED,29/04/2015,REDACTED,100,NET,REDACTED,REDACTED
Gloucester City Council,23UE,REDACTED,REDACTED,REDACTED,REDACTED,REDACTED,29/04/2015,REDACTED,100,NET,REDACTED,REDACTED
Gloucester City Council,23UE,REDACTED,REDACTED,REDACTED,REDACTED,REDACTED,29/04/2015,REDACTED,100,NET,REDACTED,REDACTED
Gloucester City Council,23UE,REDACTED,REDACTED,REDACTED,REDACTED,REDACTED,29/04/2015,REDACTED,10.06,NET,REDACTED,REDACTED
Gloucester City Council,23UE,REDACTED,REDACTED,REDACTED,REDACTED,REDACTED,29/04/2015,REDACTED,18.08,NET,REDACTED,REDACTED
Gloucester City Council,23UE,REDACTED,REDACTED,REDACTED,REDACTED,REDACTED,29/04/2015,REDACTED,100,NET,REDACTED,REDACTED
Gloucester City Council,23UE,REDACTED,REDACTED,REDACTED,REDACTED,REDACTED,29/04/2015,REDACTED,120,NET,REDACTED,REDACTED
Gloucester City Council,23UE,REDACTED,REDACTED,REDACTED,REDACTED,REDACTED,29/04/2015,REDACTED,120,NET,REDACTED,REDACTED
Gloucester City Council,23UE,REDACTED,REDACTED,REDACTED,REDACTED,REDACTED,29/04/2015,REDACTED,192,NET,REDACTED,REDACTED
Gloucester City Council,23UE,REDACTED,REDACTED,REDACTED,REDACTED,REDACTED,29/04/2015,REDACTED,368.2,NET,REDACTED,REDACTED
Gloucester City Council,23UE,Homelessness Prevention,CH122,Basic Pay - Temporary Staff,2751,TEMPORARY STAFF,29/04/2015,401347,784.62,NET,Building Recruitment Company Ltd,55385E
Gloucester City Council,23UE,REDACTED,REDACTED,REDACTED,REDACTED,REDACTED,29/04/2015,REDACTED,428,NET,REDACTED,REDACTED
Gloucester City Council,23UE,Investment Property,RB500,Maint Of Grounds - General,3030,"Bowls/Cricket Club, Spa Road",29/04/2015,401822,2491.16,NET,Anderson Civil Engineering Uk Ltd,09083D
Gloucester City Council,23UE,Investment Property,RB500,Water Supply,3400,ACCT 6470035115,29/04/2015,398337,663.58,NET,Severn Trent Water,01823H
Gloucester City Council,23UE,Retail Market - Landlord,HM300,Window Cleaning,3610,Monthly Window Clean April 2015,29/04/2015,401527,140,NET,Cornwall Cleaning Services,14050A
Gloucester City Council,23UE,Tic Theatre Ticket Sales,LT107,Materials For Sale,5080,Ticket Sales - 'Darling Buds of May',29/04/2015,401848,395,NET,Kings Theatre,54213X
Gloucester City Council,23UE,Tic Theatre Ticket Sales,LT107,Sale Of Goods And Services,9230,Ticket Sales - 'Darling Buds of May',29/04/2015,401848,-32.92,NET,Kings Theatre,54213X
Gloucester City Council,23UE,Aspire Admin Charges,LC105,Fees For Services Received,5350,February 2015 Staff Memberships,30/04/2015,399800,696,NET,Aspire Sports & Cultural Trust,08135V
Gloucester City Council,23UE,Aspire Admin Charges,LC105,Fees For Services Received,5350,January 2015 Staff Memberships,30/04/2015,399803,696,NET,Aspire Sports & Cultural Trust,08135V
Gloucester City Council,23UE,Business Transformation & Tech,RT700,Computer Hardware <5000,5420,Latitude 15 5000 Series,30/04/2015,401521,589,NET,Dell Computers Corporation Ltd,55920C
Gloucester City Council,23UE,Cctv Revenue Budget,FP501,Security Equipment Serv/Repair,3038,Rental,30/04/2015,401815,11748.44,NET,Bt Redcare,04692U
Gloucester City Council,23UE,City Museum Catering,LM202,Catering Provisions -Food,5110,Food,30/04/2015,401823,110.27,NET,Woodward Foodservice,10714F
Gloucester City Council,23UE,City Museum Catering,LM202,Catering Provisions -Food,5110,Food,30/04/2015,401839,102.04,NET,Woodward Foodservice,10714F
Gloucester City Council,23UE,Docks Complex - Telephones,RB120,Mobile Phones,5409,Samsung Galaxy Ace,30/04/2015,400307,119,NET,Everything Everywhere Ltd (T-Mobile),02334V
Gloucester City Council,23UE,Docks Complex - Telephones,RB120,Mobile Phones,5409,Samsung Galaxy Ace,30/04/2015,400364,98,NET,Everything Everywhere Ltd (T-Mobile),02334V
Gloucester City Council,23UE,Docks Complex - Telephones,RB120,Telephones And Fax,5410,Charges Feb 2015,30/04/2015,399774,3948.11,NET,Gamma Business Communications,10260A
Gloucester City Council,23UE,REDACTED,REDACTED,REDACTED,REDACTED,REDACTED,30/04/2015,REDACTED,150,NET,REDACTED,REDACTED
Gloucester City Council,23UE,REDACTED,REDACTED,REDACTED,REDACTED,REDACTED,30/04/2015,REDACTED,588.52,NET,REDACTED,REDACTED
Gloucester City Council,23UE,REDACTED,REDACTED,REDACTED,REDACTED,REDACTED,30/04/2015,REDACTED,637.56,NET,REDACTED,REDACTED
Gloucester City Council,23UE,Tic Trading,LT110,Materials For Sale,5080,GOODS FOR RESALE,30/04/2015,401780,1897,NET,Magnartism Ltd,09098P
Gloucester City Council,23UE,REDACTED,REDACTED,REDACTED,REDACTED,REDACTED,,REDACTED,35,NET,REDACTED,REDACTED
Gloucester City Council,23UE,Utilities,PT502,Electricity Supply,3110,ROMAN EXCAVATIONS,,398970,150.68,NET,Southern Electric,05714A
,,,,,,,,Sum:,3735211.93,,,
